Department Family,Entity,Date,Expense Type,Expense Area,Supplier,Transaction Number,Amount
Home Office,NPIA - National Policing Improvement Agency,21/01/2011,IT software,Information & Communications Technology & Science Directorate,Specialist Computer Centres PLC,5100049128,"24,709.35"
Home Office,NPIA - National Policing Improvement Agency,05/01/2011,Airwave Core Service Charge,Operations Directorate,Airwave Solutions Ltd,5100049165,"14,764,483.34"
Home Office,NPIA - National Policing Improvement Agency,05/01/2011,Airwave Core Service Charge,Operations Directorate,Airwave Solutions Ltd,5100049166,"224,932.61"
Home Office,NPIA - National Policing Improvement Agency,05/01/2011,IT software,Operations Directorate,Fujitsu (FTS) Limited,5100049190,"189,099.98"
Home Office,NPIA - National Policing Improvement Agency,05/01/2011,IT software,Operations Directorate,Fujitsu (FTS) Limited,5100049190,"15,214.94"
Home Office,NPIA - National Policing Improvement Agency,05/01/2011,IT software,Operations Directorate,Fujitsu (FTS) Limited,5100049190,"374,173.91"
Home Office,NPIA - National Policing Improvement Agency,05/01/2011,IT software,Operations Directorate,Fujitsu (FTS) Limited,5100049190,"30,105.94"
Home Office,NPIA - National Policing Improvement Agency,05/01/2011,IT software,Operations Directorate,Fujitsu (FTS) Limited,5100049190,"6,685.39"
Home Office,NPIA - National Policing Improvement Agency,05/01/2011,IT software,Operations Directorate,Fujitsu (FTS) Limited,5100049190,537.9
Home Office,NPIA - National Policing Improvement Agency,05/01/2011,IT software,Operations Directorate,Fujitsu (FTS) Limited,5100049190,"182,194.71"
Home Office,NPIA - National Policing Improvement Agency,05/01/2011,IT software,Operations Directorate,Fujitsu (FTS) Limited,5100049190,"14,659.34"
Home Office,NPIA - National Policing Improvement Agency,05/01/2011,IT software,Operations Directorate,Fujitsu (FTS) Limited,5100049190,"360,363.36"
Home Office,NPIA - National Policing Improvement Agency,05/01/2011,IT software,Operations Directorate,Fujitsu (FTS) Limited,5100049190,"28,994.75"
Home Office,NPIA - National Policing Improvement Agency,05/01/2011,IT Hardware,Operations Directorate,Fujitsu (FTS) Limited,5100049190,"582,386.79"
Home Office,NPIA - National Policing Improvement Agency,05/01/2011,IT Hardware,Operations Directorate,Fujitsu (FTS) Limited,5100049190,"46,858.70"
Home Office,NPIA - National Policing Improvement Agency,05/01/2011,IT Hardware,Operations Directorate,Fujitsu (FTS) Limited,5100049190,"461,574.85"
Home Office,NPIA - National Policing Improvement Agency,05/01/2011,IT Hardware,Operations Directorate,Fujitsu (FTS) Limited,5100049190,"37,138.20"
Home Office,NPIA - National Policing Improvement Agency,05/01/2011,IT Hardware,Operations Directorate,Fujitsu (FTS) Limited,5100049190,"7,473.09"
Home Office,NPIA - National Policing Improvement Agency,05/01/2011,IT Hardware,Operations Directorate,Fujitsu (FTS) Limited,5100049190,601.28
Home Office,NPIA - National Policing Improvement Agency,05/01/2011,IT Hardware,Operations Directorate,Fujitsu (FTS) Limited,5100049190,"357,378.30"
Home Office,NPIA - National Policing Improvement Agency,05/01/2011,IT Hardware,Operations Directorate,Fujitsu (FTS) Limited,5100049190,"28,754.57"
Home Office,NPIA - National Policing Improvement Agency,05/01/2011,IT Hardware,Operations Directorate,Fujitsu (FTS) Limited,5100049190,"97,797.22"
Home Office,NPIA - National Policing Improvement Agency,05/01/2011,IT Hardware,Operations Directorate,Fujitsu (FTS) Limited,5100049190,"7,868.74"
Home Office,NPIA - National Policing Improvement Agency,05/01/2011,IT software,Operations Directorate,Fujitsu (FTS) Limited,5100049190,"37,639.99"
Home Office,NPIA - National Policing Improvement Agency,05/01/2011,IT software,Operations Directorate,Fujitsu (FTS) Limited,5100049190,"3,028.50"
Home Office,NPIA - National Policing Improvement Agency,05/01/2011,IT software,Operations Directorate,Fujitsu (FTS) Limited,5100049190,"15,890.07"
Home Office,NPIA - National Policing Improvement Agency,05/01/2011,IT software,Operations Directorate,Fujitsu (FTS) Limited,5100049190,"1,278.51"
Home Office,NPIA - National Policing Improvement Agency,05/01/2011,IT software,Operations Directorate,Fujitsu (FTS) Limited,5100049190,"244,059.93"
Home Office,NPIA - National Policing Improvement Agency,05/01/2011,IT software,Operations Directorate,Fujitsu (FTS) Limited,5100049190,"19,637.00"
Home Office,NPIA - National Policing Improvement Agency,05/01/2011,IT software,Operations Directorate,Fujitsu (FTS) Limited,5100049190,"22,450.01"
Home Office,NPIA - National Policing Improvement Agency,05/01/2011,IT software,Operations Directorate,Fujitsu (FTS) Limited,5100049190,"1,050.00"
Home Office,NPIA - National Policing Improvement Agency,05/01/2011,IT software,Operations Directorate,Fujitsu (FTS) Limited,5100049193,"346,930.60"
Home Office,NPIA - National Policing Improvement Agency,05/01/2011,IT software,Operations Directorate,Fujitsu (FTS) Limited,5100049193,"38,244.32"
Home Office,NPIA - National Policing Improvement Agency,05/01/2011,IT software,Operations Directorate,Fujitsu (FTS) Limited,5100049193,"341,314.09"
Home Office,NPIA - National Policing Improvement Agency,05/01/2011,IT software,Operations Directorate,Fujitsu (FTS) Limited,5100049193,"37,625.17"
Home Office,NPIA - National Policing Improvement Agency,05/01/2011,IT software,Operations Directorate,Fujitsu (FTS) Limited,5100049193,"839,042.77"
Home Office,NPIA - National Policing Improvement Agency,05/01/2011,IT software,Operations Directorate,Fujitsu (FTS) Limited,5100049193,"92,492.91"
Home Office,NPIA - National Policing Improvement Agency,05/01/2011,IT software,Operations Directorate,Fujitsu (FTS) Limited,5100049193,"754,653.94"
Home Office,NPIA - National Policing Improvement Agency,05/01/2011,IT software,Operations Directorate,Fujitsu (FTS) Limited,5100049193,"83,190.19"
Home Office,NPIA - National Policing Improvement Agency,05/01/2011,IT maintenance,Operations Directorate,Fujitsu (FTS) Limited,5100049197,"97,497.87"
Home Office,NPIA - National Policing Improvement Agency,05/01/2011,Management consultancy,People & Development Directorate,Price Waterhouse Coopers,5100049416,"50,569.75"
Home Office,NPIA - National Policing Improvement Agency,17/01/2011,FM Costs,Resources Directorate,Wyboston Lakes Ltd,5100049470,"54,455.12"
Home Office,NPIA - National Policing Improvement Agency,05/01/2011,IT Managed Services,People & Development Directorate,Cable & Wireless Communications,5100049496,"-23,046.82"
Home Office,NPIA - National Policing Improvement Agency,05/01/2011,IT Managed Services,People & Development Directorate,Cable & Wireless Communications,5100049496,-11.18
Home Office,NPIA - National Policing Improvement Agency,05/01/2011,IT Hardware,Information & Communications Technology & Science Directorate,Oracle UK,5100049233,"35,103.63"
Home Office,NPIA - National Policing Improvement Agency,27/01/2011,Telecoms <5000,Information & Communications Technology & Science Directorate,Specialist Computer Centres PLC,5100049666,"30,615.03"
Home Office,NPIA - National Policing Improvement Agency,21/01/2011,Rent/lease - Offices,Resources Directorate,Mapeley STEPS Ltd,5100049715,"630,902.25"
Home Office,NPIA - National Policing Improvement Agency,21/01/2011,Rent/lease - Offices,Resources Directorate,Mapeley STEPS Ltd,5100049715,"10,809.28"
Home Office,NPIA - National Policing Improvement Agency,05/01/2011,IT Information Support,Operations Directorate,Cable & Wireless Communications,5100049746,"52,725.00"
Home Office,NPIA - National Policing Improvement Agency,05/01/2011,IT Information Support,Operations Directorate,Cable & Wireless Communications,5100049752,187.5
Home Office,NPIA - National Policing Improvement Agency,05/01/2011,IT Information Support,Operations Directorate,Cable & Wireless Communications,5100049752,"1,900.00"
Home Office,NPIA - National Policing Improvement Agency,05/01/2011,IT Information Support,Operations Directorate,Cable & Wireless Communications,5100049752,"6,989.00"
Home Office,NPIA - National Policing Improvement Agency,05/01/2011,IT Information Support,Operations Directorate,Cable & Wireless Communications,5100049752,"2,250.00"
Home Office,NPIA - National Policing Improvement Agency,05/01/2011,IT Information Support,Operations Directorate,Cable & Wireless Communications,5100049752,"4,000.00"
Home Office,NPIA - National Policing Improvement Agency,05/01/2011,IT Information Support,Operations Directorate,Cable & Wireless Communications,5100049752,"3,515.00"
Home Office,NPIA - National Policing Improvement Agency,05/01/2011,IT Information Support,Operations Directorate,Cable & Wireless Communications,5100049752,"3,840.00"
Home Office,NPIA - National Policing Improvement Agency,05/01/2011,IT Information Support,Operations Directorate,Cable & Wireless Communications,5100049752,"3,600.00"
Home Office,NPIA - National Policing Improvement Agency,05/01/2011,IT Information Support,Operations Directorate,Cable & Wireless Communications,5100049752,"2,000.00"
Home Office,NPIA - National Policing Improvement Agency,05/01/2011,IT Information Support,Operations Directorate,Cable & Wireless Communications,5100049752,"1,733.00"
Home Office,NPIA - National Policing Improvement Agency,05/01/2011,IT Information Support,Operations Directorate,Cable & Wireless Communications,5100049752,-0.09
Home Office,NPIA - National Policing Improvement Agency,05/01/2011,IT software,Operations Directorate,Cable & Wireless Communications,5100049753,"3,738.00"
Home Office,NPIA - National Policing Improvement Agency,05/01/2011,IT maintenance,Operations Directorate,Cable & Wireless Communications,5100049753,"6,102.00"
Home Office,NPIA - National Policing Improvement Agency,05/01/2011,IT Information Support,Operations Directorate,Cable & Wireless Communications,5100049753,"87,935.00"
Home Office,NPIA - National Policing Improvement Agency,26/01/2011,IT Managed Services,Information & Communications Technology & Science Directorate,Cable & Wireless Communications,5100049782,"3,047.41"
Home Office,NPIA - National Policing Improvement Agency,26/01/2011,IT Managed Services,Information & Communications Technology & Science Directorate,Cable & Wireless Communications,5100049782,823.16
Home Office,NPIA - National Policing Improvement Agency,26/01/2011,IT Managed Services,Information & Communications Technology & Science Directorate,Cable & Wireless Communications,5100049782,"16,478.41"
Home Office,NPIA - National Policing Improvement Agency,26/01/2011,IT Managed Services,Information & Communications Technology & Science Directorate,Cable & Wireless Communications,5100049782,"25,946.25"
Home Office,NPIA - National Policing Improvement Agency,07/01/2011,Land and Buildings maintenance,Resources Directorate,Drivers Jonas,1900058458,"27,906.25"
Home Office,NPIA - National Policing Improvement Agency,07/01/2011,Telephone charges,Information & Communications Technology & Science Directorate,BT Plc,1900059065,"41,140.76"
Home Office,NPIA - National Policing Improvement Agency,07/01/2011,IT Managed Services,Information & Communications Technology & Science Directorate,Oracle UK,5100049475,"24,919.50"
Home Office,NPIA - National Policing Improvement Agency,07/01/2011,IT Information Support,Operations Directorate,UNISYS Ltd,5100049837,"31,600.00"
Home Office,NPIA - National Policing Improvement Agency,27/01/2011,IT software,Operations Directorate,Oracle UK,5100049840,"716,565.11"
Home Office,NPIA - National Policing Improvement Agency,27/01/2011,IT software,Operations Directorate,Oracle UK,5100049840,"125,398.85"
Home Office,NPIA - National Policing Improvement Agency,27/01/2011,IT Information Support,Operations Directorate,Oracle UK,5100049840,"611,679.48"
Home Office,NPIA - National Policing Improvement Agency,27/01/2011,IT Information Support,Operations Directorate,Oracle UK,5100049840,"107,043.83"
Home Office,NPIA - National Policing Improvement Agency,27/01/2011,IT Information Support,Operations Directorate,Oracle UK,5100049840,"33,306.24"
Home Office,NPIA - National Policing Improvement Agency,27/01/2011,IT Information Support,Operations Directorate,Oracle UK,5100049840,"5,828.59"
Home Office,NPIA - National Policing Improvement Agency,27/01/2011,IT Managed Services,Information & Communications Technology & Science Directorate,Siemens Enterprise Comm Ltd,5100049852,"100,172.50"
Home Office,NPIA - National Policing Improvement Agency,27/01/2011,IT Managed Services,Information & Communications Technology & Science Directorate,Siemens Enterprise Comm Ltd,5100049852,-172.5
Home Office,NPIA - National Policing Improvement Agency,27/01/2011,IT Managed Services,Information & Communications Technology & Science Directorate,Siemens Enterprise Comm Ltd,5100049855,"280,000.00"
Home Office,NPIA - National Policing Improvement Agency,07/01/2011,Contractors,Policing Policy and Practice Directorate ,Advantage Technical Resourcing,5100049880,"55,252.00"
Home Office,NPIA - National Policing Improvement Agency,07/01/2011,Land and Buildings maintenance,Resources Directorate,Drivers Jonas,1900058711,"40,647.48"
Home Office,NPIA - National Policing Improvement Agency,17/01/2011,Rent of telephone exchange,Information & Communications Technology & Science Directorate,BT Global Services,1900059235,"117,040.63"
Home Office,NPIA - National Policing Improvement Agency,07/01/2011,IT Hardware,Operations Directorate,Fujitsu (FTS) Limited,5100049889,"8,945.68"
Home Office,NPIA - National Policing Improvement Agency,07/01/2011,IT Hardware,Operations Directorate,Fujitsu (FTS) Limited,5100049889,"1,565.50"
Home Office,NPIA - National Policing Improvement Agency,07/01/2011,IT Hardware,Operations Directorate,Fujitsu (FTS) Limited,5100049889,"15,346.80"
Home Office,NPIA - National Policing Improvement Agency,07/01/2011,IT Hardware,Operations Directorate,Fujitsu (FTS) Limited,5100049889,"2,685.69"
Home Office,NPIA - National Policing Improvement Agency,17/01/2011,Telephone charges,Information & Communications Technology & Science Directorate,Cable & Wireless Communications,1900059273,"23,529.69"
Home Office,NPIA - National Policing Improvement Agency,17/01/2011,FM Costs,Resources Directorate,Wyboston Lakes Ltd,5100049825,"92,208.74"
Home Office,NPIA - National Policing Improvement Agency,17/01/2011,FM Costs,Resources Directorate,Wyboston Lakes Ltd,5100049825,"1,613.65"
Home Office,NPIA - National Policing Improvement Agency,17/01/2011,IT consultancy,Operations Directorate,Northgate Information Solutions UK,5100049945,"43,247.00"
Home Office,NPIA - National Policing Improvement Agency,17/01/2011,FM Costs,Resources Directorate,Wyboston Lakes Ltd,5100049993,"54,168.75"
Home Office,NPIA - National Policing Improvement Agency,17/01/2011,Airwave Ground Based Network Resilience Serv. Chg,Operations Directorate,Airwave Solutions Ltd,5100049997,"585,739.14"
Home Office,NPIA - National Policing Improvement Agency,17/01/2011,Airwave Cluster Hot Standby Service Charge,Operations Directorate,Airwave Solutions Ltd,5100049998,"88,333.33"
Home Office,NPIA - National Policing Improvement Agency,17/01/2011,Airwave in London Underground Service Charge,Operations Directorate,Airwave Solutions Ltd,5100050000,"366,626.25"
Home Office,NPIA - National Policing Improvement Agency,17/01/2011,Airwave Cluster Hot Standby Service Charge,Operations Directorate,Airwave Solutions Ltd,5100050001,"636,906.75"
Home Office,NPIA - National Policing Improvement Agency,17/01/2011,Airwave Channel Tunnel Service Charge,Operations Directorate,Airwave Solutions Ltd,5100050002,"24,335.91"
Home Office,NPIA - National Policing Improvement Agency,21/01/2011,Stamford Service Charge,Operations Directorate,Airwave Solutions Ltd,5100050005,"110,668.96"
Home Office,NPIA - National Policing Improvement Agency,21/01/2011,Schengen Service Charge,Operations Directorate,Airwave Solutions Ltd,5100050005,"8,255.81"
Home Office,NPIA - National Policing Improvement Agency,21/01/2011,Firewall Service Charge,Operations Directorate,Airwave Solutions Ltd,5100050005,"25,065.75"
Home Office,NPIA - National Policing Improvement Agency,21/01/2011,Airwave in London Underground Service Charge,Operations Directorate,Airwave Solutions Ltd,5100050005,"68,641.15"
Home Office,NPIA - National Policing Improvement Agency,21/01/2011,Airwave in London Underground Service Charge,Operations Directorate,Airwave Solutions Ltd,5100050005,"21,098.56"
Home Office,NPIA - National Policing Improvement Agency,24/01/2011,IT Managed Services,Information & Communications Technology & Science Directorate,Logica CMG UK Ltd,5100050066,"330,491.00"
Home Office,NPIA - National Policing Improvement Agency,17/01/2011,NPIA Subs to professional bodies,CEO Directorate,Emerald,5100050229,"31,640.00"
Home Office,NPIA - National Policing Improvement Agency,18/01/2011,Electricity,Resources Directorate,EDF Energy Exeter,1900059076,"46,264.72"
Home Office,NPIA - National Policing Improvement Agency,18/01/2011,Electricity,Resources Directorate,EDF Energy Exeter,1900059076,"-8,993.13"
Home Office,NPIA - National Policing Improvement Agency,18/01/2011,Electricity,Resources Directorate,EDF Energy Exeter,1900059076,"-6,464.62"
Home Office,NPIA - National Policing Improvement Agency,18/01/2011,Electricity,Resources Directorate,EDF Energy Exeter,1900059076,"4,488.27"
Home Office,NPIA - National Policing Improvement Agency,18/01/2011,Electricity,Resources Directorate,EDF Energy Exeter,1900059076,"20,001.92"
Home Office,NPIA - National Policing Improvement Agency,18/01/2011,Electricity,Resources Directorate,EDF Energy Exeter,1900059076,"4,857.84"
Home Office,NPIA - National Policing Improvement Agency,18/01/2011,Electricity,Resources Directorate,EDF Energy Exeter,1900059076,250.15
Home Office,NPIA - National Policing Improvement Agency,18/01/2011,Electricity,Resources Directorate,EDF Energy Exeter,1900059076,549.95
Home Office,NPIA - National Policing Improvement Agency,19/01/2011,FM Costs,Resources Directorate,Home Office,5100050324,"213,879.41"
Home Office,NPIA - National Policing Improvement Agency,19/01/2011,FM Costs,Resources Directorate,Home Office,5100050324,"3,742.91"
Home Office,NPIA - National Policing Improvement Agency,19/01/2011,FM Costs,Resources Directorate,Home Office,5100050324,"12,677.11"
Home Office,NPIA - National Policing Improvement Agency,19/01/2011,FM Costs,Resources Directorate,Home Office,5100050324,221.85
Home Office,NPIA - National Policing Improvement Agency,19/01/2011,FM Costs,Resources Directorate,Home Office,5100050324,"75,402.35"
Home Office,NPIA - National Policing Improvement Agency,19/01/2011,FM Costs,Resources Directorate,Home Office,5100050324,"1,319.54"
Home Office,NPIA - National Policing Improvement Agency,19/01/2011,FM Costs,Resources Directorate,Home Office,5100050324,"6,741.50"
Home Office,NPIA - National Policing Improvement Agency,19/01/2011,FM Costs,Resources Directorate,Home Office,5100050324,117.98
Home Office,NPIA - National Policing Improvement Agency,19/01/2011,FM Costs,Resources Directorate,Home Office,5100050324,"306,701.00"
Home Office,NPIA - National Policing Improvement Agency,19/01/2011,FM Costs,Resources Directorate,Home Office,5100050324,"5,367.27"
Home Office,NPIA - National Policing Improvement Agency,19/01/2011,FM Costs,Resources Directorate,Home Office,5100050324,"12,730.00"
Home Office,NPIA - National Policing Improvement Agency,19/01/2011,FM Costs,Resources Directorate,Home Office,5100050324,222.77
Home Office,NPIA - National Policing Improvement Agency,19/01/2011,FM Costs,Resources Directorate,Home Office,5100050324,"84,616.96"
Home Office,NPIA - National Policing Improvement Agency,19/01/2011,FM Costs,Resources Directorate,Home Office,5100050324,"1,480.80"
Home Office,NPIA - National Policing Improvement Agency,19/01/2011,FM Costs,Resources Directorate,Home Office,5100050324,"4,080.00"
Home Office,NPIA - National Policing Improvement Agency,19/01/2011,FM Costs,Resources Directorate,Home Office,5100050324,71.4
Home Office,NPIA - National Policing Improvement Agency,19/01/2011,FM Costs,Resources Directorate,Home Office,5100050324,"3,864.50"
Home Office,NPIA - National Policing Improvement Agency,19/01/2011,FM Costs,Resources Directorate,Home Office,5100050324,67.63
Home Office,NPIA - National Policing Improvement Agency,19/01/2011,FM Costs,Resources Directorate,Home Office,5100050324,"1,997.00"
Home Office,NPIA - National Policing Improvement Agency,19/01/2011,FM Costs,Resources Directorate,Home Office,5100050324,34.94
Home Office,NPIA - National Policing Improvement Agency,19/01/2011,Management consultancy,Information & Communications Technology & Science Directorate,Price Waterhouse Coopers,1700004652,"-84,007.69"
Home Office,NPIA - National Policing Improvement Agency,19/01/2011,Land and Buildings maintenance,Resources Directorate,Drivers Jonas,1900059437,"32,312.50"
Home Office,NPIA - National Policing Improvement Agency,19/01/2011,Land and Buildings maintenance,Resources Directorate,Wates Interiors,1900059526,"68,322.44"
Home Office,NPIA - National Policing Improvement Agency,19/01/2011,Management consultancy,Information & Communications Technology & Science Directorate,Price Waterhouse Coopers,1900059529,"84,007.69"
Home Office,NPIA - National Policing Improvement Agency,21/01/2011,IT & Telecommunications.IT & Telecommunications,Information & Communications Technology & Science Directorate,Cable & Wireless Communications,5100045767,"18,600.00"
Home Office,NPIA - National Policing Improvement Agency,21/01/2011,IT & Telecommunications.IT & Telecommunications,Information & Communications Technology & Science Directorate,Cable & Wireless Communications,5100045767,"5,812.50"
Home Office,NPIA - National Policing Improvement Agency,21/01/2011,IT & Telecommunications.IT & Telecommunications,Information & Communications Technology & Science Directorate,Cable & Wireless Communications,5100045767,"3,720.00"
Home Office,NPIA - National Policing Improvement Agency,21/01/2011,IT & Telecommunications.IT & Telecommunications,Information & Communications Technology & Science Directorate,Cable & Wireless Communications,5100045767,"5,208.00"
Home Office,NPIA - National Policing Improvement Agency,21/01/2011,IT & Telecommunications.IT & Telecommunications,Information & Communications Technology & Science Directorate,Cable & Wireless Communications,5100045767,0.5
Home Office,NPIA - National Policing Improvement Agency,19/01/2011,FM Costs,Resources Directorate,Home Office,5100050381,"-213,879.41"
Home Office,NPIA - National Policing Improvement Agency,19/01/2011,FM Costs,Resources Directorate,Home Office,5100050381,"-3,742.91"
Home Office,NPIA - National Policing Improvement Agency,19/01/2011,FM Costs,Resources Directorate,Home Office,5100050381,"-12,677.11"
Home Office,NPIA - National Policing Improvement Agency,19/01/2011,FM Costs,Resources Directorate,Home Office,5100050381,-221.85
Home Office,NPIA - National Policing Improvement Agency,19/01/2011,FM Costs,Resources Directorate,Home Office,5100050381,"-75,402.35"
Home Office,NPIA - National Policing Improvement Agency,19/01/2011,FM Costs,Resources Directorate,Home Office,5100050381,"-1,319.54"
Home Office,NPIA - National Policing Improvement Agency,19/01/2011,FM Costs,Resources Directorate,Home Office,5100050381,"-6,741.50"
Home Office,NPIA - National Policing Improvement Agency,19/01/2011,FM Costs,Resources Directorate,Home Office,5100050381,-117.98
Home Office,NPIA - National Policing Improvement Agency,19/01/2011,FM Costs,Resources Directorate,Home Office,5100050381,"-306,701.00"
Home Office,NPIA - National Policing Improvement Agency,19/01/2011,FM Costs,Resources Directorate,Home Office,5100050381,"-5,367.27"
Home Office,NPIA - National Policing Improvement Agency,19/01/2011,FM Costs,Resources Directorate,Home Office,5100050381,"-12,730.00"
Home Office,NPIA - National Policing Improvement Agency,19/01/2011,FM Costs,Resources Directorate,Home Office,5100050381,-222.77
Home Office,NPIA - National Policing Improvement Agency,19/01/2011,FM Costs,Resources Directorate,Home Office,5100050381,"-84,616.96"
Home Office,NPIA - National Policing Improvement Agency,19/01/2011,FM Costs,Resources Directorate,Home Office,5100050381,"-1,480.80"
Home Office,NPIA - National Policing Improvement Agency,19/01/2011,FM Costs,Resources Directorate,Home Office,5100050381,"-4,080.00"
Home Office,NPIA - National Policing Improvement Agency,19/01/2011,FM Costs,Resources Directorate,Home Office,5100050381,-71.4
Home Office,NPIA - National Policing Improvement Agency,19/01/2011,FM Costs,Resources Directorate,Home Office,5100050381,"-3,864.50"
Home Office,NPIA - National Policing Improvement Agency,19/01/2011,FM Costs,Resources Directorate,Home Office,5100050381,-67.63
Home Office,NPIA - National Policing Improvement Agency,19/01/2011,FM Costs,Resources Directorate,Home Office,5100050381,"-1,997.00"
Home Office,NPIA - National Policing Improvement Agency,19/01/2011,FM Costs,Resources Directorate,Home Office,5100050381,-34.94
Home Office,NPIA - National Policing Improvement Agency,27/01/2011,IT Managed Services,Information & Communications Technology & Science Directorate,IPL Information Processing Ltd.,5100050412,"199,998.05"
Home Office,NPIA - National Policing Improvement Agency,27/01/2011,IT Managed Services,Information & Communications Technology & Science Directorate,IPL Information Processing Ltd.,5100050412,1.95
Home Office,NPIA - National Policing Improvement Agency,26/01/2011,IT software,Information & Communications Technology & Science Directorate,Specialist Computer Centres PLC,5100047872,"6,068.37"
Home Office,NPIA - National Policing Improvement Agency,26/01/2011,IT software,Information & Communications Technology & Science Directorate,Specialist Computer Centres PLC,5100047872,-5.47
Home Office,NPIA - National Policing Improvement Agency,26/01/2011,IT software,Information & Communications Technology & Science Directorate,Specialist Computer Centres PLC,5100047872,341.65
Home Office,NPIA - National Policing Improvement Agency,26/01/2011,IT software,Information & Communications Technology & Science Directorate,Specialist Computer Centres PLC,5100047872,146.66
Home Office,NPIA - National Policing Improvement Agency,26/01/2011,IT software,Information & Communications Technology & Science Directorate,Specialist Computer Centres PLC,5100047872,183.81
Home Office,NPIA - National Policing Improvement Agency,26/01/2011,IT software,Information & Communications Technology & Science Directorate,Specialist Computer Centres PLC,5100047872,91.47
Home Office,NPIA - National Policing Improvement Agency,26/01/2011,IT software,Information & Communications Technology & Science Directorate,Specialist Computer Centres PLC,5100047872,-0.04
Home Office,NPIA - National Policing Improvement Agency,26/01/2011,IT software,Information & Communications Technology & Science Directorate,Specialist Computer Centres PLC,5100047872,34.96
Home Office,NPIA - National Policing Improvement Agency,26/01/2011,IT software,Information & Communications Technology & Science Directorate,Specialist Computer Centres PLC,5100047872,"10,192.30"
Home Office,NPIA - National Policing Improvement Agency,26/01/2011,IT software,Information & Communications Technology & Science Directorate,Specialist Computer Centres PLC,5100047872,"2,086.51"
Home Office,NPIA - National Policing Improvement Agency,26/01/2011,IT software,Information & Communications Technology & Science Directorate,Specialist Computer Centres PLC,5100047872,"2,130.21"
Home Office,NPIA - National Policing Improvement Agency,26/01/2011,IT software,Information & Communications Technology & Science Directorate,Specialist Computer Centres PLC,5100047872,37.28
Home Office,NPIA - National Policing Improvement Agency,26/01/2011,IT software,Information & Communications Technology & Science Directorate,Specialist Computer Centres PLC,5100047872,"5,291.03"
Home Office,NPIA - National Policing Improvement Agency,26/01/2011,IT Information Support,Policing Policy and Practice Directorate ,Steria Ltd,5100049435,"62,122.66"
Home Office,NPIA - National Policing Improvement Agency,26/01/2011,Associate tutors,Operations Directorate,GREATER MANCHESTER WEST NHS TRUST,5100049875,"28,038.40"
Home Office,NPIA - National Policing Improvement Agency,26/01/2011,Associate tutors,Operations Directorate,GREATER MANCHESTER WEST NHS TRUST,5100049875,"2,400.00"
Home Office,NPIA - National Policing Improvement Agency,24/01/2011,IT Managed Services,Information & Communications Technology & Science Directorate,Logica CMG UK Ltd,5100050482,"-330,491.00"
Home Office,NPIA - National Policing Improvement Agency,26/01/2011,IT Managed Services,Information & Communications Technology & Science Directorate,Logica CMG UK Ltd,5100050483,"333,763.19"
Home Office,NPIA - National Policing Improvement Agency,26/01/2011,IT Managed Services,Information & Communications Technology & Science Directorate,Logica CMG UK Ltd,5100050483,"-3,272.19"
Home Office,NPIA - National Policing Improvement Agency,26/01/2011,Land and Buildings maintenance,Resources Directorate,Jacobs Uk Ltd,1900058291,"47,461.13"
Home Office,NPIA - National Policing Improvement Agency,26/01/2011,Electricity,Resources Directorate,EDF Energy,1900059331,"40,478.28"
Home Office,NPIA - National Policing Improvement Agency,26/01/2011,Land and Buildings maintenance,Resources Directorate,Jacobs Uk Ltd,1900059631,"28,875.19"
Home Office,NPIA - National Policing Improvement Agency,27/01/2011,Telecoms <5000,Information & Communications Technology & Science Directorate,Specialist Computer Centres PLC,5100050641,"-30,615.03"
Home Office,NPIA - National Policing Improvement Agency,27/01/2011,Telecoms <5000,Information & Communications Technology & Science Directorate,Specialist Computer Centres PLC,5100050643,"30,088.48"
Home Office,NPIA - National Policing Improvement Agency,27/01/2011,Telecoms <5000,Information & Communications Technology & Science Directorate,Specialist Computer Centres PLC,5100050643,526.55
Home Office,Home Office,25/01/2011,Healthcare Services.Healthcare Services - PROG,OSCT - Office of Security and Counter-Terrorism,CT CENTRE (MOD) T/A DSTL,1897300,"149,845.20"
Home Office,Home Office,25/01/2011,Other Government Department,OSCT - Office of Security and Counter-Terrorism,EUROPEAN COMMISSION,1898157,"144,963.30"
Home Office,Home Office,14/01/2011,Professional & Admin Services.Consultant - Imp & Del - PROG,OSCT - Office of Security and Counter-Terrorism,KPMG,1890444,"100,471.31"
Home Office,Home Office,24/01/2011,Professional & Admin Services.Seconded in Staff costs - PROG,OSCT - Office of Security and Counter-Terrorism,METROPOLITAN POLICE AUTHORITY,1894752,"92,049.94"
Home Office,Home Office,21/01/2011,Professional & Admin Services.Seconded in Staff costs - PROG,OSCT - Office of Security and Counter-Terrorism,METROPOLITAN POLICE AUTHORITY,1894706,"90,332.86"
Home Office,Home Office,14/01/2011,Professional & Admin Services.Consultant - Imp & Del - PROG,OSCT - Office of Security and Counter-Terrorism,KPMG,1890446,"58,092.00"
Home Office,Home Office,28/01/2011,Healthcare Services.Healthcare Services - PROG,OSCT - Office of Security and Counter-Terrorism,MOREDUN RESEARCH INSTITUTE,1900163,"45,903.09"
Home Office,Home Office,05/01/2011,Healthcare Services.Healthcare Services - PROG,OSCT - Office of Security and Counter-Terrorism,CT CENTRE (MOD) T/A DSTL,1882197,"45,602.56"
Home Office,Home Office,31/01/2011,IT & Telecommunications.IT & Telecommunications,OSCT - Office of Security and Counter-Terrorism,CABLE AND WIRELESS,1901091,"42,963.58"
Home Office,Home Office,14/01/2011,Professional & Admin Services.Consultant - Imp & Del - PROG,OSCT - Office of Security and Counter-Terrorism,KPMG,1890438,"33,109.15"
Home Office,Home Office,14/01/2011,IT & Telecommunications.IT & Telecommunications,OSCT - Office of Security and Counter-Terrorism,HEWLETT PACKARD,1877339,"30,182.23"
Home Office,Home Office,31/01/2011,Healthcare Services.Healthcare Services - PROG,OSCT - Office of Security and Counter-Terrorism,CT CENTRE (MOD) T/A DSTL,1897298,"27,912.00"
Home Office,Home Office,14/01/2011,Professional & Admin Services.Consultant - Imp & Del - PROG,OSCT - Office of Security and Counter-Terrorism,KPMG,1890439,"26,839.35"
Home Office,Home Office,24/01/2011,Professional & Admin Services.Seconded in Staff costs - ADMN,OSCT - Office of Security and Counter-Terrorism,THAMES VALLEY POLICE AUTHORITY,1896028,"26,314.04"
Home Office,Home Office,27/01/2011,Healthcare Services.Healthcare Services - PROG,OSCT - Office of Security and Counter-Terrorism,LGC LTD,1897206,"25,274.40"
Home Office,Home Office,31/01/2011,Other Government Department,OSCT - Office of Security and Counter-Terrorism,HEALTH PROTECTION AGENCY,1902858,"34,696.98"
Home Office,Home Office,28/01/2011,Other Government Department,OSCT - Office of Security and Counter-Terrorism,COI COMMUNICATIONS,1900580,"27,628.05"
Home Office,Home Office,28/01/2011,Other Government Department,OSCT - Office of Security and Counter-Terrorism,FOREIGN AND COMMONWEALTH OFFICE,1900940,"47,174.70"
Home Office,Home Office,24/01/2011,Other Government Department,OSCT - Office of Security and Counter-Terrorism,MINISTRY OF JUSTICE,1896938,"25,418.10"
Home Office,Home Office,07/01/2011,Grants,OSCT - Office of Security and Counter-Terrorism,THAMES VALLEY POLICE (G),1885861,"155,275.00"
Home Office,Home Office,17/01/2011,Grants,OSCT - Office of Security and Counter-Terrorism,OLYMPIC DELIVERY AUTHORITY (G),1891711,"58,750.00"
Home Office,Home Office,17/01/2011,Grants,OSCT - Office of Security and Counter-Terrorism,SOCA (G),1891772,"440,000.00"
Home Office,Home Office,21/01/2011,Grants,OSCT - Office of Security and Counter-Terrorism,ESSEX POLICE AUTHORITY (G),1896268,"101,372.00"
Home Office,Home Office,21/01/2011,Grants,OSCT - Office of Security and Counter-Terrorism,ESSEX POLICE AUTHORITY (G),1896269,"100,770.00"
Home Office,Home Office,21/01/2011,Grants,OSCT - Office of Security and Counter-Terrorism,LOCAL GOVERNMENT ASSOCIATION 1 (G),1896271,"41,353.92"
Home Office,Home Office,25/01/2011,Grants,OSCT - Office of Security and Counter-Terrorism,ACPO (G),1898779,"56,940.00"
Home Office,Home Office,27/01/2011,Grants,OSCT - Office of Security and Counter-Terrorism,CITY OF LONDON POLICE AUTHORITY (G),1900097,"63,395.00"
Home Office,CRB - Criminal Records Bureau,24/01/2011,Police costs per check,CRB - Criminal Records Bureau,Bedfordshire Police,15497  1,"26,140.17"
Home Office,CRB - Criminal Records Bureau,24/01/2011,Police costs per check,CRB - Criminal Records Bureau,British Transport Police,15497  2,"48,565.02"
Home Office,CRB - Criminal Records Bureau,24/01/2011,Police costs per check,CRB - Criminal Records Bureau,Cheshire Police Authority,15497  6,"119,088.96"
Home Office,CRB - Criminal Records Bureau,24/01/2011,Police costs per check,CRB - Criminal Records Bureau,Cleveland Police Authority,15497  8,"25,871.89"
Home Office,CRB - Criminal Records Bureau,24/01/2011,Police costs per check,CRB - Criminal Records Bureau,Devon & Cornwall Police Authority,15497  10,"37,382.46"
Home Office,CRB - Criminal Records Bureau,04/01/2011,Police costs per check,CRB - Criminal Records Bureau,Durham Police Authority,15379  3,"27,308.12"
Home Office,CRB - Criminal Records Bureau,24/01/2011,Police costs per check,CRB - Criminal Records Bureau,Durham Police Authority,15497  11,"28,346.47"
Home Office,CRB - Criminal Records Bureau,04/01/2011,Police costs per check,CRB - Criminal Records Bureau,Gloucestershire Police Authority,15379  6,"41,246.82"
Home Office,CRB - Criminal Records Bureau,04/01/2011,Police costs per check,CRB - Criminal Records Bureau,Greater Manchester Police Authority,15379  7,"93,567.45"
Home Office,CRB - Criminal Records Bureau,24/01/2011,Police costs per check,CRB - Criminal Records Bureau,Gwent Police Authority,15497  15,"57,354.12"
Home Office,CRB - Criminal Records Bureau,04/01/2011,Police costs per check,CRB - Criminal Records Bureau,Hampshire Police Authority,15379  8,"69,924.05"
Home Office,CRB - Criminal Records Bureau,04/01/2011,Police costs per check,CRB - Criminal Records Bureau,Hertfordshire Police Authority,15379  9,"55,380.91"
Home Office,CRB - Criminal Records Bureau,04/01/2011,Police costs per check,CRB - Criminal Records Bureau,Humberside Police Authority,15379  10,"70,212.42"
Home Office,CRB - Criminal Records Bureau,04/01/2011,Police costs per check,CRB - Criminal Records Bureau,Kent Constabulary,15379  12,"76,043.74"
Home Office,CRB - Criminal Records Bureau,24/01/2011,Police costs per check,CRB - Criminal Records Bureau,Lancashire Police Authority,15497  18,"112,887.67"
Home Office,CRB - Criminal Records Bureau,24/01/2011,Police costs per check,CRB - Criminal Records Bureau,Leicestershire Police Authority,15497  19,"53,018.36"
Home Office,CRB - Criminal Records Bureau,04/01/2011,Police costs per check,CRB - Criminal Records Bureau,Merseyside Police Authority,15379  15,"73,595.74"
Home Office,CRB - Criminal Records Bureau,04/01/2011,Police costs per check,CRB - Criminal Records Bureau,The Metropolitan Police,15379  16,"648,476.71"
Home Office,CRB - Criminal Records Bureau,24/01/2011,Police costs per check,CRB - Criminal Records Bureau,The Metropolitan Police,15497  20,"53,628.13"
Home Office,CRB - Criminal Records Bureau,04/01/2011,Police costs per check,CRB - Criminal Records Bureau,Nottinghamshire Police Authority,15379  17,"40,069.11"
Home Office,CRB - Criminal Records Bureau,04/01/2011,Police costs per check,CRB - Criminal Records Bureau,North Wales Police,15379  18,"79,648.76"
Home Office,CRB - Criminal Records Bureau,24/01/2011,Police costs per check,CRB - Criminal Records Bureau,North Yorkshire Police Authority,15497  25,"88,438.99"
Home Office,CRB - Criminal Records Bureau,24/01/2011,Police costs per check,CRB - Criminal Records Bureau,Royal Military Police,15497  28,"41,890.51"
Home Office,CRB - Criminal Records Bureau,24/01/2011,Police costs per check,CRB - Criminal Records Bureau,Disclosure Scotland,15497  29,"33,007.71"
Home Office,CRB - Criminal Records Bureau,24/01/2011,Police costs per check,CRB - Criminal Records Bureau,Avon & Somerset Police,15497  30,"139,823.52"
Home Office,CRB - Criminal Records Bureau,24/01/2011,Police costs per check,CRB - Criminal Records Bureau,South Wales Police Authority,15497   31,"30,468.45"
Home Office,CRB - Criminal Records Bureau,24/01/2011,Police costs per check,CRB - Criminal Records Bureau,South Yorkshire Police Authority,15497  32,"38,361.08"
Home Office,CRB - Criminal Records Bureau,24/01/2011,Police costs per check,CRB - Criminal Records Bureau,Staffordshire Police Authority,15497  34,"34,214.22"
Home Office,CRB - Criminal Records Bureau,24/01/2011,Police costs per check,CRB - Criminal Records Bureau,Thames Valley Police Authority,15497  35,"101,482.94"
Home Office,CRB - Criminal Records Bureau,24/01/2011,Police costs per check,CRB - Criminal Records Bureau,Warwickshire Police Authority,15497  39,"26,932.82"
Home Office,CRB - Criminal Records Bureau,24/01/2011,Police costs per check,CRB - Criminal Records Bureau,West Midlands Police Authority,15497  40,"280,817.94"
Home Office,CRB - Criminal Records Bureau,28/01/2011,Accommodation Costs,CRB - Criminal Records Bureau,CB Richard Ellis,15513  1,"162,048.38"
Home Office,CRB - Criminal Records Bureau,17/01/2011,Accommodation Costs,CRB - Criminal Records Bureau,CB Richard Ellis,15469  5,"56,394.13"
Home Office,CRB - Criminal Records Bureau,24/01/2011,Contractor cost,CRB - Criminal Records Bureau,Hays Accountancy,15497  16,"34,801.67"
Home Office,CRB - Criminal Records Bureau,10/01/2011,Legal Costs,CRB - Criminal Records Bureau,Treasury Solicitors,15442  33,"36,713.29"
Home Office,CRB - Criminal Records Bureau,31/01/2011,Public Private Partnership contract / agreement,CRB - Criminal Records Bureau,Capita Business Services Ltd,15518  11,"173,230.06"
Home Office,Home Office,28/01/2011,"Science, Technical & Research.Social Research","Research, Dev & Statistics",REAL TIME ANALYZERS INC,1899854,"85,000.00"
Home Office,Home Office,18/01/2011,Lab & Scientific Equip (FA).Laboratory & scientific equip,"Research, Dev & Statistics",SOUTHERN SCIENTIFIC LTD,1891719,"67,197.60"
Home Office,Home Office,12/01/2011,"Science, Technical & Research.Social Research","Research, Dev & Statistics",CT CENTRE (MOD) T/A DSTL,1886962,"60,046.80"
Home Office,Home Office,18/01/2011,"Science, Technical & Research.Social Research","Research, Dev & Statistics",COBALT LIGHT SYSTEMS LTD,1892686,"50,448.63"
Home Office,Home Office,14/01/2011,Professional & Admin Services.Clerical & Admin Staff - PROG,"Research, Dev & Statistics",ICTS (UK) LIMITED,1887037,"28,106.00"
Home Office,Home Office,18/01/2011,"Science, Technical & Research.Social Research","Research, Dev & Statistics",UNIVERSITY COLLEGE LONDON,1891737,"25,951.00"
Home Office,Home Office,20/01/2011,"Science, Technical & Research.Social Research","Research, Dev & Statistics",TECHNOLOGY STRATEGY BOARD,1894616,"93,801.50"
Home Office,ISA - Independent Safeguarding Authority,19/01/2011,Training Costs Ops Accreditation,ISA - Independent Safeguarding Authority,UNIVERSITY OF TEESSIDE,3165,"32,766.00"
Home Office,SOCA - Serious Organised Crime Agency,20/12/2010,Property Plant & Equipment,Investment Board,WATES INTERIORS LTD,60427,"1,703,750.00"
Home Office,SOCA - Serious Organised Crime Agency,20/12/2010,IT Expenses,Corporate Services,CAPITA BUSINESS SERVICES LTD,60441,"454,921.27"
Home Office,SOCA - Serious Organised Crime Agency,20/12/2010,IT Expenses,Corporate Services,CAPITA BUSINESS SERVICES LTD,60443,"454,921.27"
Home Office,SOCA - Serious Organised Crime Agency,20/12/2010,IT Expenses,Corporate Services,CAPITA BUSINESS SERVICES LTD,60448,"66,345.20"
Home Office,SOCA - Serious Organised Crime Agency,20/12/2010,IT Expenses,Corporate Services,CAPITA BUSINESS SERVICES LTD,60450,"66,345.20"
Home Office,SOCA - Serious Organised Crime Agency,20/12/2010,Property Plant & Equipment,Investment Board,DRIVERS JONAS DELOITTE,60455,"36,608.30"
Home Office,SOCA - Serious Organised Crime Agency,20/12/2010,IT Expenses,Corporate Services,FOREIGN & COMMONWEALTH OFFICE,60482,"113,932.12"
Home Office,SOCA - Serious Organised Crime Agency,22/12/2010,Property Plant & Equipment,Investment Board,BMW AUTHORITIES,60665,"34,251.00"
Home Office,SOCA - Serious Organised Crime Agency,23/12/2010,IT Expenses,Non-SOCA Business,LOGICA UK LTD,60768,"36,856.11"
Home Office,SOCA - Serious Organised Crime Agency,04/01/2011,IT Expenses,Corporate Services,COMPUTACENTER (UK) LIMITED,60958,"29,462.33"
Home Office,SOCA - Serious Organised Crime Agency,04/01/2011,Property Plant & Equipment,Investment Board,LAND ROVER GROUP LTD,60970,"29,798.82"
Home Office,SOCA - Serious Organised Crime Agency,04/01/2011,Property Plant & Equipment,Investment Board,LAND ROVER GROUP LTD,60974,"29,798.82"
Home Office,SOCA - Serious Organised Crime Agency,04/01/2011,PFI Contract Charges,Investment Board,SERCO  LTD,61088,"91,848.02"
Home Office,SOCA - Serious Organised Crime Agency,04/01/2011,IT Expenses,Investment Board,SERCO  LTD,61090,"104,184.07"
Home Office,SOCA - Serious Organised Crime Agency,04/01/2011,Office and General Expenses,Corporate Services,OFFICE DEPOT UK LTD,61093,"40,445.00"
Home Office,SOCA - Serious Organised Crime Agency,04/01/2011,Salaries and Allowances -permanently employed,Enforcement,SOUTH YORKSHIRE POLICE AUTH.,61143,"26,120.12"
Home Office,SOCA - Serious Organised Crime Agency,04/01/2011,PFI Contract Charges,Investment Board,SERCO  LTD,61147,"89,761.65"
Home Office,SOCA - Serious Organised Crime Agency,04/01/2011,Salaries and Allowances -permanently employed,Enforcement,SOUTH YORKSHIRE POLICE AUTH.,61148,"28,535.80"
Home Office,SOCA - Serious Organised Crime Agency,04/01/2011,IT Expenses,Investment Board,SERCO  LTD,61161,"120,309.43"
Home Office,SOCA - Serious Organised Crime Agency,04/01/2011,PFI Contract Charges,Investment Board,SERCO  LTD,61234,"80,740.90"
Home Office,SOCA - Serious Organised Crime Agency,04/01/2011,IT Expenses,Intelligence,ROYAL MAIL GROUP PLC,61326,"45,334.12"
Home Office,SOCA - Serious Organised Crime Agency,04/01/2011,Operational and Communications Costs,Investment Board,SEPURA LTD,61343,"581,625.00"
Home Office,SOCA - Serious Organised Crime Agency,05/01/2011,Property Plant & Equipment,Investment Board,DRIVERS JONAS DELOITTE,61409,"39,857.74"
Home Office,SOCA - Serious Organised Crime Agency,07/01/2011,Premises,Corporate Services,KIER BUILDING SERVICES,61689,"52,270.19"
Home Office,SOCA - Serious Organised Crime Agency,11/01/2011,IT Expenses,Corporate Services,CAPITA BUSINESS SERVICES LTD,61912,"54,653.95"
Home Office,SOCA - Serious Organised Crime Agency,11/01/2011,IT Expenses,Corporate Services,CAPITA BUSINESS SERVICES LTD,61914,"40,138.22"
Home Office,SOCA - Serious Organised Crime Agency,12/01/2011,IT Expenses,Corporate Services,L-3 COMMUNICATIONS ASA LTD,61984,"220,312.50"
Home Office,SOCA - Serious Organised Crime Agency,12/01/2011,IT Expenses,Corporate Services,L-3 COMMUNICATIONS ASA LTD,61992,"28,252.88"
Home Office,SOCA - Serious Organised Crime Agency,12/01/2011,Professional Services and Fees,Corporate Services,ATOS ORIGINS,62129,"26,630.71"
Home Office,SOCA - Serious Organised Crime Agency,12/01/2011,Premises,Corporate Services,OCS GROUP,62167,"181,874.38"
Home Office,SOCA - Serious Organised Crime Agency,12/01/2011,Premises,Corporate Services,SCOTTISH POLICE SERVICES AUTH,62332,"109,889.00"
Home Office,SOCA - Serious Organised Crime Agency,12/01/2011,Property Plant & Equipment,Investment Board,DRIVERS JONAS DELOITTE,62354,"36,608.30"
Home Office,SOCA - Serious Organised Crime Agency,13/01/2011,Salaries and Allowances -Seconded Officers,Central & Hosted Services,HOME OFFICE PAY & PENSIONS SER,62412,"27,728.60"
Home Office,SOCA - Serious Organised Crime Agency,13/01/2011,IT Expenses,Corporate Services,CAPITA BUSINESS SERVICES LTD,62435,"49,259.53"
Home Office,SOCA - Serious Organised Crime Agency,17/01/2011,IT Expenses,Corporate Services,BT,62557,"176,250.00"
Home Office,SOCA - Serious Organised Crime Agency,17/01/2011,Professional Services and Fees,Investment Board,BADENOCH & CLARK LIMITED,62577,"39,778.54"
Home Office,SOCA - Serious Organised Crime Agency,17/01/2011,IT Expenses,Corporate Services,SCC PLC,62580,"65,027.13"
Home Office,SOCA - Serious Organised Crime Agency,18/01/2011,Property Plant & Equipment,Investment Board,BMW AUTHORITIES,62582,"34,251.00"
Home Office,SOCA - Serious Organised Crime Agency,18/01/2011,"Accommodation, Subsistence & General Expenses",CEOP,SURREY POLICE AUTHORITY,62628,"2,205.02"
Home Office,SOCA - Serious Organised Crime Agency,18/01/2011,Salaries and Allowances -Seconded Officers,CEOP,SURREY POLICE AUTHORITY,62628,"42,259.64"
Home Office,SOCA - Serious Organised Crime Agency,18/01/2011,Salaries and Allowances -permanently employed,CEOP,SURREY POLICE AUTHORITY,62628,"1,417.27"
Home Office,SOCA - Serious Organised Crime Agency,19/01/2011,Professional Services and Fees,Investment Board,FIELD FISHER WATERHOUSE LLP,62695,"49,302.86"
Home Office,SOCA - Serious Organised Crime Agency,19/01/2011,Salaries and Allowances -permanently employed,Corporate Services,CAPITA BUSINESS SERVICES LTD,62717,"39,715.00"
Home Office,SOCA - Serious Organised Crime Agency,19/01/2011,Salaries and Allowances -Seconded Officers,Corporate Services,REVENUE FINANCE BANKING SERVIC,62734,"34,562.65"
Home Office,SOCA - Serious Organised Crime Agency,19/01/2011,Forensic Fees,Intelligence,MD5 LTD,62847,"31,819.00"
Home Office,SOCA - Serious Organised Crime Agency,19/01/2011,PFI Contract Charges,Enforcement,SERCO  LTD,62848,"1,856.04"
Home Office,SOCA - Serious Organised Crime Agency,19/01/2011,IT Expenses,Corporate Services,SERCO  LTD,62848,"8,297.04"
Home Office,SOCA - Serious Organised Crime Agency,19/01/2011,PFI Contract Charges,Corporate Services,SERCO  LTD,62848,"1,768,346.24"
Home Office,SOCA - Serious Organised Crime Agency,19/01/2011,PFI Contract Charges,CEOP,SERCO  LTD,62848,"31,423.61"
Home Office,SOCA - Serious Organised Crime Agency,19/01/2011,IT Expenses,Investment Board,SERCO  LTD,62848,"9,787.94"
Home Office,SOCA - Serious Organised Crime Agency,19/01/2011,IT Expenses,Investment Board,SERCO  LTD,62848,737.66
Home Office,SOCA - Serious Organised Crime Agency,19/01/2011,PFI Contract Charges,Investment Board,SERCO  LTD,62848,"132,626.12"
Home Office,SOCA - Serious Organised Crime Agency,19/01/2011,Property Plant & Equipment,Investment Board,SERCO  LTD,62848,"2,534.13"
Home Office,SOCA - Serious Organised Crime Agency,19/01/2011,Premises,Corporate Services,SERCO  LTD,62864,"73,394.71"
Home Office,SOCA - Serious Organised Crime Agency,19/01/2011,IT Expenses,Intelligence,CABLE & WIRELESS COMMS.,62882,"215,141.72"
Home Office,SOCA - Serious Organised Crime Agency,19/01/2011,IT Expenses,Non-SOCA Business,BT,62884,"235,000.00"
Home Office,SOCA - Serious Organised Crime Agency,19/01/2011,Office Equipment & Repairs,Corporate Services,CANON (UK) LTD,63020,"30,579.62"
Home Office,SOCA - Serious Organised Crime Agency,19/01/2011,IT Expenses,Corporate Services,SERCO  LTD,63070,"120,990.42"
Home Office,SOCA - Serious Organised Crime Agency,21/01/2011,Professional Services and Fees,Corporate Services,BADENOCH & CLARK LIMITED,63222,"12,155.16"
Home Office,SOCA - Serious Organised Crime Agency,21/01/2011,Professional Services and Fees,Non-SOCA Business,BADENOCH & CLARK LIMITED,63222,"40,246.56"
Home Office,SOCA - Serious Organised Crime Agency,21/01/2011,Professional Services and Fees,Investment Board,LA INT'L COMPUTER CONSULTANTS,63242,"33,008.40"
Home Office,SOCA - Serious Organised Crime Agency,21/01/2011,Salaries and Allowances -Seconded Officers,Corporate Services,REVENUE FINANCE BANKING SERVIC,63250,"76,116.38"
Home Office,SOCA - Serious Organised Crime Agency,21/01/2011,Indirect Employee Costs,Corporate Services,ELIESHA TRAINING LTD,63305,"23,064.08"
Home Office,Home Office,28/01/2011,Grants,CPG - Crime & Policing Group,SUSSEX POLICE AUTHORITY 1 (G),1903107,"84,180.00"
Home Office,Home Office,25/01/2011,Grants,CPG - Crime & Policing Group,MERSEYSIDE POLICE AUTHORITY 1 (G),1898807,"400,000.00"
Home Office,Home Office,25/01/2011,Grants,CPG - Crime & Policing Group,SUSSEX POLICE AUTHORITY 1 (G),1898808,"360,000.00"
Home Office,Home Office,24/01/2011,Grants,CPG - Crime & Policing Group,POLICE FEDERATION OF ENGLAND & WALES (G),1896936,"51,270.48"
Home Office,Home Office,28/01/2011,Grants,CPG - Crime & Policing Group,INDEPENDENT POLICE COMPLAINTS COMISSION (G),1891721,"3,000,000.00"
Home Office,Home Office,10/01/2011,Grants,CPG - Crime & Policing Group,NORFOLK COUNTY COUNCIL 1 (G),1887175,"27,000.00"
Home Office,Home Office,17/01/2011,Grants,CPG - Crime & Policing Group,SUFFOLK POLICE AUTHORITY (G),1891633,"29,000.00"
Home Office,Home Office,24/01/2011,Grants,CPG - Crime & Policing Group,TORFAEN COUNTY BOROUGH (G),1894141,"40,000.00"
Home Office,Home Office,25/01/2011,Grants,CPG - Crime & Policing Group,TRIBAL EDUCATION UK LIMITED (G),1898840,"298,877.38"
Home Office,Home Office,05/01/2011,Grants,CPG - Crime & Policing Group,WILTSHIRE CONSTABULARY (G),1888145,"75,000.00"
Home Office,Home Office,28/01/2011,Grants,CPG - Crime & Policing Group,NORTH WALES POLICE AUTHORITY (G),1900835,"75,000.00"
Home Office,Home Office,04/01/2011,Grants,CPG - Crime & Policing Group,ASSOCIATION OF TOWN CENTRE MANAGERS (ATCM) (G),1877867,"50,000.00"
Home Office,Home Office,25/01/2011,Grants,CPG - Crime & Policing Group,PROOF OF AGE STANDARD SCHEME (PASS) (G),1898815,"30,000.00"
Home Office,Home Office,28/01/2011,Grants,CPG - Crime & Policing Group,GREATER MANCHESTER POLICE AUTHORITY (G),1899095,"26,523.00"
Home Office,Home Office,28/01/2011,Grants,CPG - Crime & Policing Group,GREATER MANCHESTER POLICE AUTHORITY (G),1899096,"40,000.00"
Home Office,Home Office,12/01/2011,Grants,CPG - Crime & Policing Group,CLINKS (G),1887195,"226,557.00"
Home Office,Home Office,04/01/2011,Grants,CPG - Crime & Policing Group,SOCA (G),1868227,"41,500,000.00"
Home Office,Home Office,06/01/2011,Grants,CPG - Crime & Policing Group,CHAMBERLAIN OF LONDON (G),1883464,"439,280.26"
Home Office,Home Office,06/01/2011,Grants,CPG - Crime & Policing Group,CHAMBERLAIN OF LONDON (G),1883465,"374,661.53"
Home Office,Home Office,06/01/2011,Grants,CPG - Crime & Policing Group,CHAMBERLAIN OF LONDON (G),1883467,"597,697.59"
Home Office,Home Office,11/01/2011,Grants,CPG - Crime & Policing Group,NATIONAL POLICING IMPROVEMENT AGENCY (G),1888095,"202,940.00"
Home Office,Home Office,27/01/2011,Grants,CPG - Crime & Policing Group,LANCASHIRE POLICE AUTHORITY 1 (G),1898291,"868,000.00"
Home Office,Home Office,27/01/2011,Grants,CPG - Crime & Policing Group,METROPOLITAN POLICE SERVICE (G),1898296,"823,591.15"
Home Office,Home Office,27/01/2011,Grants,CPG - Crime & Policing Group,WEST MIDLANDS POLICE AUTHORITY 1 (G),1898297,"760,561.00"
Home Office,Home Office,27/01/2011,Grants,CPG - Crime & Policing Group,SOCA (G),1898298,"93,575.00"
Home Office,Home Office,27/01/2011,Grants,CPG - Crime & Policing Group,CHAMBERLAIN OF LONDON (G),1898782,"763,226.17"
Home Office,Home Office,27/01/2011,Grants,CPG - Crime & Policing Group,CHAMBERLAIN OF LONDON (G),1898783,"408,454.10"
Home Office,Home Office,27/01/2011,Grants,CPG - Crime & Policing Group,CHAMBERLAIN OF LONDON (G),1898784,"285,158.61"
Home Office,Home Office,21/01/2011,Grants,CPG - Crime & Policing Group,NATIONAL UNION OF STUDENTS (G),1895362,"40,012.00"
Home Office,Home Office,24/01/2011,Grants,CPG - Crime & Policing Group,HELP THE AGED,1899979,"80,648.00"
Home Office,Home Office,28/01/2011,Grants,CPG - Crime & Policing Group,NEIGHBOURHOOD AND HOMEWATCH NETWORK (ENGLAND AND WALES) (G),1902012,"45,000.00"
Home Office,Home Office,10/01/2011,Grants,CPG - Crime & Policing Group,READING BOROUGH COUNCIL 1 (G),1888638,"277,365.88"
Home Office,Home Office,10/01/2011,Grants,CPG - Crime & Policing Group,SOUTHWARK PCT (G),1887193,"389,916.04"
Home Office,Home Office,26/01/2011,Grants,CPG - Crime & Policing Group,CENTRAL BEDFORDSHIRE COUNCIL (G),1900132,"1,064,748.18"
Home Office,Home Office,26/01/2011,Grants,CPG - Crime & Policing Group,DUDLEY MBC (G),1900134,"734,299.72"
Home Office,Home Office,26/01/2011,Grants,CPG - Crime & Policing Group,SOUTHWARK PCT (G),1900143,"389,916.04"
Home Office,Home Office,13/12/2010,Professional & Admin Services.Business admin services - PROG,CPG - Crime & Policing Group,SHEFFIELD CITY  COUNCIL,1871625,"56,709.05"
Home Office,Home Office,21/01/2011,Other Government Departments,CPG - Crime & Policing Group,TREASURY SOLICITOR CLIENT MONIES,1896181,"41,200.00"
Home Office,Home Office,25/01/2011,Other Government Departments,CPG - Crime & Policing Group,BRISTOL PRIMARY CARE TRUST (G),1898791,"31,707.75"
Home Office,Home Office,04/01/2011,Other Government Departments,CPG - Crime & Policing Group,COMMUNITIES & LOCAL GOVERNMENT (G),1829059,"5,936,941.00"
Home Office,Home Office,17/01/2011,Other Government Departments,CPG - Crime & Policing Group,NATIONAL TREATMENT AGENCY FOR SUBSTANCE MISUSE,1892115,"53,046.99"
Home Office,Home Office,27/01/2011,Other Government Departments,CPG - Crime & Policing Group,GLOUCESTERSHIRE PCT (G),1900142,"171,948.64"
Home Office,Home Office,27/01/2011,Other Government Departments,CPG - Crime & Policing Group,ROTHERHAM PCT (G),1900141,"341,728.44"
Home Office,Home Office,27/01/2011,Other Government Departments,CPG - Crime & Policing Group,PRESTON PRIMARY CARE NHS TRUST (G),1900138,"568,139.14"
Home Office,Home Office,21/01/2011,"Building, Construction Service.Building ConstructionServ-PROG",CPG - Crime & Policing Group,"KELLOGG, BROWN AND ROOT LTD",1894980,"37,974.55"
Home Office,Home Office,11/01/2011,"Building, Construction Service.Building ConstructionServ-PROG",CPG - Crime & Policing Group,"KELLOGG, BROWN AND ROOT LTD",1887839,"37,183.42"
Home Office,Home Office,17/01/2011,"IT, Broadcasting & Telecomms.Maintenance - PROG",CPG - Crime & Policing Group,LOGICA CMG UK LTD,1880261,"321,745.55"
Home Office,Home Office,17/01/2011,"IT, Broadcasting & Telecomms.Maintenance - PROG",CPG - Crime & Policing Group,LOGICA CMG UK LTD,1880414,"275,349.50"
Home Office,Home Office,07/01/2011,"IT, Broadcasting & Telecomms.Maintenance - PROG",CPG - Crime & Policing Group,LOGICA CMG UK LTD,1880452,"49,811.78"
Home Office,Home Office,21/01/2011,Professional & Admin Services.Seconded in Staff costs - PROG,CPG - Crime & Policing Group,THAMES VALLEY POLICE AUTHORITY,1894668,"25,576.27"
Home Office,Home Office,11/01/2011,"IT, Broadcasting & Telecomms.IT Running Cost - Maint - PROG",CPG - Crime & Policing Group,MERRILL LEGAL SOLUTIONS,1887008,"27,491.63"
Home Office,Home Office,11/01/2011,"IT, Broadcasting & Telecomms.IT Running Cost - Maint - PROG",CPG - Crime & Policing Group,MERRILL LEGAL SOLUTIONS,1887018,"26,392.43"
Home Office,Home Office,07/01/2011,Professional & Admin Services.Sponsorship,CPG - Crime & Policing Group,CATCH22,1875788,"53,944.34"
Home Office,Home Office,05/01/2011,Professional & Admin Services.Seconded in Staff costs - ADMN,CPG - Crime & Policing Group,CONWY COUNTY BOROUGH COUNCIL,1883509,"31,140.11"
Home Office,Home Office,06/01/2011,Education & Training Services.Training Dev External - PROG,CPG - Crime & Policing Group,WALKER MORRIS,1884411,"36,229.16"
Home Office,Home Office,11/01/2011,Management & Admin Serv.Corp & Bus Org Structure- PROG,CPG - Crime & Policing Group,WOODWARD LEWIS LTD,1886614,"47,000.00"
Home Office,Home Office,07/01/2011,"IT, Broadcasting & Telecomms.Computer Equip & Access - PROG",CPG - Crime & Policing Group,NPIA (National Policing Improvement Agency),1881696,"205,562.73"
Home Office,Home Office,05/01/2011,"Science, Technical & Research.Social Research",CPG - Crime & Policing Group,TNS-BMRB,1881067,"447,552.02"
Home Office,Home Office,10/01/2011,"Science, Technical & Research.Social Research",CPG - Crime & Policing Group,ERS LTD,1885771,"55,771.08"
Home Office,Home Office,11/01/2011,Defense & Law Enforcement.Police Liaison Officers,CPG - Crime & Policing Group,WEST MIDLANDS POLICE,1886959,"39,567.81"
Home Office,Home Office,11/01/2011,Professional & Admin Services.Residential Rental - PROG,CPG - Crime & Policing Group,WORKSPACE,1886970,"34,536.45"
Home Office,Home Office,10/01/2011,Professional & Admin Services.Business admin services - PROG,CPG - Crime & Policing Group,CATCH22,1886692,"49,153.69"
Home Office,Home Office,20/01/2011,Management & Admin Serv.Corp & Bus Org Structure- PROG,CPG - Crime & Policing Group,LIVERPOOL JOHN MOORES  UNIVERSITY,1893889,"47,501.37"
Home Office,Home Office,20/01/2011,Management & Admin Serv.Corp & Bus Org Structure- PROG,CPG - Crime & Policing Group,LIVERPOOL JOHN MOORES  UNIVERSITY,1893887,"33,764.50"
Home Office,Home Office,20/01/2011,Storage & Mail Services.Messenger & Reception Services,CPG - Crime & Policing Group,CONCATENO UK LIMITED,1882290,"222,496.83"
Home Office,SIA - Security Industry Authority,05/01/2011,Legal Costs,Licensing,Kingsley Napley,CKIN02,"29,228.13"
Home Office,SIA - Security Industry Authority,12/01/2011,Syntegra,Licensing,BT Syntegra,CSYN01,"500,930.43"
Home Office,SIA - Security Industry Authority,26/01/2011,CRB Costs,Licensing,CRB,CCRB01,"124,150.00"
Home Office,SIA - Security Industry Authority,26/01/2011,Legal Costs,Licensing,Kingsley Napley,CKIN02,"38,581.13"
Home Office,Home Office,24/01/2011,"IT, Broadcasting & Telecomms.IT Maintenance - ADMN",SSD - Shared Service Directorate,FUJITSU SERVICES (ALCEDO) LTD,1879114,"3,153,815.33"
Home Office,Home Office,05/01/2011,"Building, Construction Service.General building construction",SSD - Shared Service Directorate,AMEY COMMUNITY,1883020,"1,109,391.92"
Home Office,Home Office,18/01/2011,"Building, Construction Service.General building construction",SSD - Shared Service Directorate,NEW HALL PLACE UNIT TRUST,1889563,"983,149.78"
Home Office,Home Office,24/01/2011,Rent & Rates,SSD - Shared Service Directorate,DTZ DEBENHAM TIE LEUNG LTD,1896267,"877,095.76"
Home Office,Home Office,05/01/2011,"Building, Construction Service.General building construction",SSD - Shared Service Directorate,AMEY COMMUNITY,1883017,"813,673.05"
Home Office,Home Office,28/01/2011,"IT, Broadcasting & Telecomms.IT Run Costs Other - ADMN",SSD - Shared Service Directorate,FUJITSU SERVICES LTD,1883551,"674,273.17"
Home Office,Home Office,07/01/2011,"IT, Broadcasting & Telecomms.IT Running Cost - Maint - PROG",SSD - Shared Service Directorate,SERCO  LTD,1863157,"615,067.85"
Home Office,Home Office,05/01/2011,"Building, Construction Service.General building construction",SSD - Shared Service Directorate,AMEY COMMUNITY,1883022,"389,044.99"
Home Office,Home Office,31/01/2011,"Building, Construction Service.General building construction",SSD - Shared Service Directorate,AMEY COMMUNITY,1901741,"385,713.60"
Home Office,Home Office,05/01/2011,"Building, Construction Service.General building construction",SSD - Shared Service Directorate,AMEY COMMUNITY,1883016,"377,677.90"
Home Office,Home Office,21/01/2011,"Building, Construction Service.General building construction",SSD - Shared Service Directorate,HERMAN MILLER LTD,1895841,"304,193.80"
Home Office,Home Office,19/01/2011,"Building, Construction Service.General building construction",SSD - Shared Service Directorate,AMEY COMMUNITY,1892900,"293,322.42"
Home Office,Home Office,06/01/2011,"Building, Construction Service.General building construction",SSD - Shared Service Directorate,LIFTEC LIFTS LTD,1878416,"269,660.15"
Home Office,Home Office,19/01/2011,"Building, Construction Service.General building construction",SSD - Shared Service Directorate,AMEY COMMUNITY,1892955,"255,906.71"
Home Office,Home Office,25/01/2011,Rent & Rates,SSD - Shared Service Directorate,DTZ DEBENHAM TIE LEUNG LTD,1897996,"248,809.48"
Home Office,Home Office,06/01/2011,"Building, Construction Service.Building ConstructionServ-ADMN",SSD - Shared Service Directorate,INTERSERVE FACILITIES MANAGEMENT,1883678,"207,111.90"
Home Office,Home Office,17/01/2011,Professional & Admin Services.Facilities Man Serv - ADMN,SSD - Shared Service Directorate,ATKINS LTD,1890568,"191,303.92"
Home Office,Home Office,18/01/2011,Rent & Rates,SSD - Shared Service Directorate,DTZ DEBENHAM TIE LEUNG LTD,1892039,"190,957.78"
Home Office,Home Office,10/01/2011,Rent & Rates,SSD - Shared Service Directorate,DTZ DEBENHAM TIE LEUNG LTD,1885882,"171,819.21"
Home Office,Home Office,12/01/2011,"Building, Construction Service.Building ConstructionServ-PROG",SSD - Shared Service Directorate,INTERSERVE FACILITIES MANAGEMENT,1887907,"166,697.69"
Home Office,Home Office,05/01/2011,"Building, Construction Service.General building construction",SSD - Shared Service Directorate,MANSELL CONSTRUCTION SERVICES LTD,1882223,"156,585.40"
Home Office,Home Office,31/01/2011,"Building, Construction Service.Building ConstructionServ-PROG",SSD - Shared Service Directorate,INTERSERVE FACILITIES MANAGEMENT,1900905,"147,893.08"
Home Office,Home Office,21/01/2011,"Building, Construction Service.General building construction",SSD - Shared Service Directorate,HERMAN MILLER LTD,1895834,"143,557.12"
Home Office,Home Office,25/01/2011,Rent & Rates,SSD - Shared Service Directorate,DTZ DEBENHAM TIE LEUNG LTD,1898002,"143,430.38"
Home Office,Home Office,05/01/2011,"IT, Broadcasting & Telecomms.IT Run Cost � Info Support",SSD - Shared Service Directorate,SAVVIS UK LTD,1870378,"142,458.49"
Home Office,Home Office,24/01/2011,Rent & Rates,SSD - Shared Service Directorate,DTZ DEBENHAM TIE LEUNG LTD,1896147,"134,381.27"
Home Office,Home Office,26/01/2011,"Building, Construction Service.Building ConstructionServ-PROG",SSD - Shared Service Directorate,INTERSERVE FACILITIES MANAGEMENT,1898078,"124,834.57"
Home Office,Home Office,28/01/2011,"Building, Construction Service.Building ConstructionServ-PROG",SSD - Shared Service Directorate,INTERSERVE FACILITIES MANAGEMENT,1883745,"111,902.98"
Home Office,Home Office,07/01/2011,"Building, Construction Service.Building ConstructionServ-PROG",SSD - Shared Service Directorate,INTERSERVE FACILITIES MANAGEMENT,1883646,"104,309.03"
Home Office,Home Office,06/01/2011,Professional & Admin Services.Consultant - Imp & Del - PROG,SSD - Shared Service Directorate,EC HARRIS LLP,1883783,"99,616.50"
Home Office,Home Office,26/01/2011,Public Utilities.Service Charges - ADMN,SSD - Shared Service Directorate,IDENTITY & PASSPORTS SERVICE,1896937,"97,230.99"
Home Office,Home Office,26/01/2011,Public Utilities.Service Charges - ADMN,SSD - Shared Service Directorate,IDENTITY & PASSPORTS SERVICE,1896874,"97,230.99"
Home Office,Home Office,31/01/2011,"IT, Broadcasting & Telecomms.Software - ADMN",SSD - Shared Service Directorate,FUJITSU SERVICES (ALCEDO) LTD,1884904,"95,551.00"
Home Office,Home Office,26/01/2011,"Building, Construction Service.General building construction",SSD - Shared Service Directorate,TRIUMPH,1894593,"89,825.23"
Home Office,Home Office,06/01/2011,"Building, Construction Service.General building construction",SSD - Shared Service Directorate,AMEY COMMUNITY,1884410,"85,440.27"
Home Office,Home Office,31/01/2011,"Building, Construction Service.Building ConstructionServ-PROG",SSD - Shared Service Directorate,INTERSERVE FACILITIES MANAGEMENT,1900899,"83,109.44"
Home Office,Home Office,12/01/2011,Utilities.Electric utilities - ADMN,SSD - Shared Service Directorate,EDF ENERGY,1887923,"82,862.76"
Home Office,Home Office,24/01/2011,"Building, Construction Service.Building ConstructionServ-PROG",SSD - Shared Service Directorate,INTERSERVE FACILITIES MANAGEMENT,1896102,"75,443.54"
Home Office,Home Office,10/01/2011,"Building, Construction Service.Building ConstructionServ-PROG",SSD - Shared Service Directorate,INTERSERVE FACILITIES MANAGEMENT,1885706,"69,936.36"
Home Office,Home Office,10/01/2011,"Building, Construction Service.Building ConstructionServ-PROG",SSD - Shared Service Directorate,INTERSERVE FACILITIES MANAGEMENT,1883758,"69,613.72"
Home Office,Home Office,31/01/2011,"IT, Broadcasting & Telecomms.Software - ADMN",SSD - Shared Service Directorate,FUJITSU SERVICES (ALCEDO) LTD,1884905,"65,723.62"
Home Office,Home Office,28/01/2011,"Building, Construction Service.Building ConstructionServ-PROG",SSD - Shared Service Directorate,INTERSERVE FACILITIES MANAGEMENT,1883766,"64,990.26"
Home Office,Home Office,28/01/2011,"Building, Construction Service.Building ConstructionServ-PROG",SSD - Shared Service Directorate,INTERSERVE FACILITIES MANAGEMENT,1883727,"62,198.23"
Home Office,Home Office,10/01/2011,"Science, Technical & Research.Computer services - PROG",SSD - Shared Service Directorate,FINCORE LTD,1881101,"61,481.88"
Home Office,Home Office,28/01/2011,"Building, Construction Service.Building ConstructionServ-PROG",SSD - Shared Service Directorate,INTERSERVE FACILITIES MANAGEMENT,1883709,"61,145.88"
Home Office,Home Office,14/01/2011,"Building, Construction Service.General building construction",SSD - Shared Service Directorate,MARTIN & HAMILTON LTD,1881296,"59,631.25"
Home Office,Home Office,28/01/2011,"IT, Broadcasting & Telecomms.IT Run Cost � Info Support",SSD - Shared Service Directorate,ATOS ORIGIN IT SERVICES UK LIMITED- MEDICAL SERVICES,1898795,"57,436.80"
Home Office,Home Office,05/01/2011,"IT, Broadcasting & Telecomms.IT Run Cost � Info Support",SSD - Shared Service Directorate,SAVVIS UK LTD,1870402,"55,482.09"
Home Office,Home Office,24/01/2011,"Building, Construction Service.General building construction",SSD - Shared Service Directorate,LIFTEC LIFTS LTD,1896735,"54,816.00"
Home Office,Home Office,12/01/2011,"Building, Construction Service.General building construction",SSD - Shared Service Directorate,AMEY COMMUNITY,1887903,"50,934.00"
Home Office,Home Office,28/01/2011,"Building, Construction Service.Building ConstructionServ-PROG",SSD - Shared Service Directorate,INTERSERVE FACILITIES MANAGEMENT,1883757,"50,085.44"
Home Office,Home Office,10/01/2011,"Building, Construction Service.Building ConstructionServ-PROG",SSD - Shared Service Directorate,INTERSERVE FACILITIES MANAGEMENT,1885805,"49,260.38"
Home Office,Home Office,21/01/2011,"Building, Construction Service.Building ConstructionServ-PROG",SSD - Shared Service Directorate,INTERSERVE FACILITIES MANAGEMENT,1895392,"47,759.73"
Home Office,Home Office,28/01/2011,"Building, Construction Service.Building ConstructionServ-PROG",SSD - Shared Service Directorate,INTERSERVE FACILITIES MANAGEMENT,1883746,"43,321.93"
Home Office,Home Office,19/01/2011,Rent & Rates,SSD - Shared Service Directorate,DTZ DEBENHAM TIE LEUNG LTD,1892832,"43,227.96"
Home Office,Home Office,10/01/2011,Rent & Rates,SSD - Shared Service Directorate,DTZ DEBENHAM TIE LEUNG LTD,1885926,"42,722.64"
Home Office,Home Office,14/01/2011,"Building, Construction Service.General building construction",SSD - Shared Service Directorate,MARTIN & HAMILTON LTD,1882829,"41,125.00"
Home Office,Home Office,10/01/2011,"Science, Technical & Research.Computer services - PROG",SSD - Shared Service Directorate,FINCORE LTD,1881103,"41,078.00"
Home Office,Home Office,26/01/2011,"Transport, Storage & Mail Serv.File (Archive) Storage - ADMN",SSD - Shared Service Directorate,TNT UK LIMITED,1897992,"37,811.32"
Home Office,Home Office,07/01/2011,"Building, Construction Service.Building ConstructionServ-PROG",SSD - Shared Service Directorate,INTERSERVE FACILITIES MANAGEMENT,1885709,"37,261.24"
Home Office,Home Office,05/01/2011,"IT, Broadcasting & Telecomms.IT Run Cost � Info Support",SSD - Shared Service Directorate,SAVVIS UK LTD,1870421,"36,169.86"
Home Office,Home Office,31/01/2011,Management & Admin Serv.Temporary managerial staff,SSD - Shared Service Directorate,ADVANTAGE TECHNICAL RESOURCING,1886631,"35,757.60"
Home Office,Home Office,07/01/2011,Management & Admin Serv.Temp IT N/w Specialists - ADMN,SSD - Shared Service Directorate,ADVANTAGE TECHNICAL RESOURCING,1882667,"33,857.63"
Home Office,Home Office,18/01/2011,Rent & Rates,SSD - Shared Service Directorate,DTZ DEBENHAM TIE LEUNG LTD,1892018,"33,659.99"
Home Office,Home Office,26/01/2011,Public Utilities.Service Charges - ADMN,SSD - Shared Service Directorate,IDENTITY & PASSPORTS SERVICE,1896942,"31,827.85"
Home Office,Home Office,26/01/2011,Public Utilities.Service Charges - ADMN,SSD - Shared Service Directorate,IDENTITY & PASSPORTS SERVICE,1896887,"31,827.85"
Home Office,Home Office,14/01/2011,Professional & Admin Services.Consultant - Imp & Del - PROG,SSD - Shared Service Directorate,DRIVERS JONAS DELOITTE,1877281,"29,040.07"
Home Office,Home Office,06/01/2011,"Building, Construction Service.Building ConstructionServ-ADMN",SSD - Shared Service Directorate,AMEY COMMUNITY,1884405,"28,920.20"
Home Office,Home Office,14/01/2011,"Transport, Storage & Mail Serv.Mailing, Mail Delivery Service",SSD - Shared Service Directorate,CENTRAL DESPATCH,1889991,"28,818.46"
Home Office,Home Office,27/01/2011,"IT, Broadcasting & Telecomms.IT Running Cost - Maint - PROG",SSD - Shared Service Directorate,ATOS ORIGIN IT SERVICES UK LIMITED- MEDICAL SERVICES,1877902,"26,518.36"
Home Office,Home Office,28/01/2011,"Building, Construction Service.Building ConstructionServ-PROG",SSD - Shared Service Directorate,INTERSERVE FACILITIES MANAGEMENT,1883706,"25,534.78"
Home Office,Home Office,31/01/2011,"IT, Broadcasting & Telecomms.IT Running Cost - Maint - PROG",SSD - Shared Service Directorate,FUJITSU SERVICES (ALCEDO) LTD,1884906,"25,235.49"
Home Office,Home Office,28/01/2011,"Building, Construction Service.Maintenance & Repair services",SSD - Shared Service Directorate,INTERSERVE FACILITIES MANAGEMENT,1883774,"25,179.50"
Home Office,Home Office,31/01/2011,Management & Admin Serv.Temporary managerial staff,SSD - Shared Service Directorate,ADVANTAGE TECHNICAL RESOURCING,1895794,"25,030.32"
Home Office,Home Office,17/01/2011,Professional & Admin Services.Consultancy - Impementation,Group HR,CAPITA RESOURCING LTD,1885842,"27,696.34"
Home Office,UKBA - UK Border Agency,31/01/2011,Other Government Department,UKBA - UK Border Agency,DEPARTMENT OF WORK & PENSIONS (G),1899090,"243,426.00"
Home Office,UKBA - UK Border Agency,31/01/2011,Other Government Department,UKBA - UK Border Agency,DEPARTMENT OF WORK & PENSIONS (G),1899087,"62,669.00"
Home Office,UKBA - UK Border Agency,27/01/2011,Other Government Department,UKBA - UK Border Agency,FCO SERVICES,1903219,"1,295,929.90"
Home Office,UKBA - UK Border Agency,25/01/2011,Other Government Department,UKBA - UK Border Agency,FCO SERVICES,1902819,"41,523.95"
Home Office,UKBA - UK Border Agency,25/01/2011,Other Government Department,UKBA - UK Border Agency,GOVERNMENT CAR AND DESPATCH AGENCY (GCDA),1900739,"25,314.23"
Home Office,UKBA - UK Border Agency,20/01/2011,Other Government Department,UKBA - UK Border Agency,TREASURY SOLICITOR CLIENT MONIES,1899738,"101,061.16"
Home Office,UKBA - UK Border Agency,20/01/2011,Other Government Department,UKBA - UK Border Agency,FCO SERVICES,1897181,"54,276.80"
Home Office,UKBA - UK Border Agency,17/01/2011,Other Government Department,UKBA - UK Border Agency,SECURITY SERVICES GROUP,1894612,"42,694.25"
Home Office,UKBA - UK Border Agency,14/01/2011,Other Government Department,UKBA - UK Border Agency,TREASURY SOLICITOR CLIENT MONIES,1899739,"184,928.00"
Home Office,UKBA - UK Border Agency,12/01/2011,Other Government Department,UKBA - UK Border Agency,TREASURY SOLICITORS OFFICE,1892118,"54,353.24"
Home Office,UKBA - UK Border Agency,12/01/2011,Other Government Department,UKBA - UK Border Agency,TREASURY SOLICITORS OFFICE,1892111,"1,932,130.47"
Home Office,UKBA - UK Border Agency,12/01/2011,Other Government Department,UKBA - UK Border Agency,TREASURY SOLICITORS OFFICE,1892108,"25,984.09"
Home Office,UKBA - UK Border Agency,12/01/2011,Other Government Department,UKBA - UK Border Agency,DEPARTMENT FOR WORK AND PENSIONS ACCOUNTING SHARED SERVICES,1896240,"45,415.00"
Home Office,UKBA - UK Border Agency,10/01/2011,Other Government Department,UKBA - UK Border Agency,TREASURY SOLICITOR CLIENT MONIES,1892106,"76,576.29"
Home Office,UKBA - UK Border Agency,10/01/2011,Other Government Department,UKBA - UK Border Agency,TREASURY SOLICITOR CLIENT MONIES,1892105,"321,730.14"
Home Office,UKBA - UK Border Agency,06/01/2011,Other Government Department,UKBA - UK Border Agency,TREASURY SOLICITOR CLIENT MONIES,1888878,"300,855.27"
Home Office,UKBA - UK Border Agency,05/01/2011,Other Government Department,UKBA - UK Border Agency,DRIVER AND VEHICLE LICENSING AGENCY (DVLA),1888707,"46,823.34"
Home Office,UKBA - UK Border Agency,05/01/2011,Other Government Department,UKBA - UK Border Agency,DRIVER AND VEHICLE LICENSING AGENCY (DVLA),1888700,"80,681.70"
Home Office,UKBA - UK Border Agency,05/01/2011,Other Government Department,UKBA - UK Border Agency,DRIVER AND VEHICLE LICENSING AGENCY (DVLA),1888691,"63,932.69"
Home Office,UKBA - UK Border Agency,01/01/2011,Grants,UKBA - UK Border Agency,EAST MIDLANDS REGIONAL LOCAL GOVERNMENT ASSOCIATION (G),1881472,"30,372.00"
Home Office,UKBA - UK Border Agency,01/01/2011,Grants,UKBA - UK Border Agency,WEST MIDLANDS LOCAL GOVERNMENT ASSOCIATION (WMLGA) (G),1881527,"39,717.25"
Home Office,UKBA - UK Border Agency,01/01/2011,Grants,UKBA - UK Border Agency,EAST OF ENGLAND REGIONAL ASSEMBLY (G),1881530,"25,699.50"
Home Office,UKBA - UK Border Agency,05/01/2011,Grants,UKBA - UK Border Agency,LONDON BOROUGH OF BARNET 1 (G),1882501,"277,334.64"
Home Office,UKBA - UK Border Agency,05/01/2011,Grants,UKBA - UK Border Agency,LONDON BOROUGH OF BEXLEY (G),1882504,"76,802.28"
Home Office,UKBA - UK Border Agency,05/01/2011,Grants,UKBA - UK Border Agency,BIRMINGHAM CITY COUNCIL (G),1882506,"260,636.46"
Home Office,UKBA - UK Border Agency,05/01/2011,Grants,UKBA - UK Border Agency,BUCKINGHAMSHIRE COUNTY COUNCIL 1 (G),1882507,"192,720.48"
Home Office,UKBA - UK Border Agency,05/01/2011,Grants,UKBA - UK Border Agency,CARDIFF COUNTY COUNCIL 1 (G),1882510,"404,435.58"
Home Office,UKBA - UK Border Agency,05/01/2011,Grants,UKBA - UK Border Agency,DEVON COUNTY COUNCIL 1 (G),1882512,"57,105.81"
Home Office,UKBA - UK Border Agency,05/01/2011,Grants,UKBA - UK Border Agency,EAST RIDING OF YORKSHIRE COUNCIL 1 (G),1882513,"71,493.09"
Home Office,UKBA - UK Border Agency,05/01/2011,Grants,UKBA - UK Border Agency,LONDON BOROUGH OF HARINGEY 1 (G),1882515,"542,546.78"
Home Office,UKBA - UK Border Agency,05/01/2011,Grants,UKBA - UK Border Agency,LONDON BOROUGH OF HILLINGDON 1 (G),1882516,"1,887,636.40"
Home Office,UKBA - UK Border Agency,05/01/2011,Grants,UKBA - UK Border Agency,LONDON BOROUGH OF KENSINGTON & CHELSEA (G),1882519,"300,819.72"
Home Office,UKBA - UK Border Agency,05/01/2011,Grants,UKBA - UK Border Agency,ROYAL BOROUGH KINGSTON UPON THAMES (G),1882520,"229,741.02"
Home Office,UKBA - UK Border Agency,05/01/2011,Grants,UKBA - UK Border Agency,OXFORDSHIRE COUNTY COUNCIL 1 (G),1882526,"655,056.42"
Home Office,UKBA - UK Border Agency,05/01/2011,Grants,UKBA - UK Border Agency,PLYMOUTH CITY COUNCIL 1 (G),1882528,"72,264.21"
Home Office,UKBA - UK Border Agency,05/01/2011,Grants,UKBA - UK Border Agency,LONDON BOROUGH OF RICHMOND UPON THAMES (G),1882530,"50,694.08"
Home Office,UKBA - UK Border Agency,05/01/2011,Grants,UKBA - UK Border Agency,SANDWELL METROPOLITAN BOROUGH COUNCIL (G),1882531,"110,524.68"
Home Office,UKBA - UK Border Agency,05/01/2011,Grants,UKBA - UK Border Agency,SHEFFIELD CITY COUNCIL 1 (G),1882533,"217,692.45"
Home Office,UKBA - UK Border Agency,05/01/2011,Grants,UKBA - UK Border Agency,SOLIHULL MBC,1882534,"2,396,762.64"
Home Office,UKBA - UK Border Agency,05/01/2011,Grants,UKBA - UK Border Agency,SOMERSET COUNTY COUNCIL 1 (G),1882552,"45,397.65"
Home Office,UKBA - UK Border Agency,05/01/2011,Grants,UKBA - UK Border Agency,STAFFORDSHIRE COUNTY COUNCIL 1 (G),1882554,"564,040.14"
Home Office,UKBA - UK Border Agency,05/01/2011,Grants,UKBA - UK Border Agency,CITY AND COUNTY OF SWANSEA 1 (G),1882556,"26,599.05"
Home Office,UKBA - UK Border Agency,05/01/2011,Grants,UKBA - UK Border Agency,TRAFFORD METROPOLITAN BOROUGH COUNCIL (G),1882558,"117,913.29"
Home Office,UKBA - UK Border Agency,05/01/2011,Grants,UKBA - UK Border Agency,WEST SUSSEX COUNTY COUNCIL 1 (G),1882559,"445,582.80"
Home Office,UKBA - UK Border Agency,07/01/2011,Grants,UKBA - UK Border Agency,SCOTTISH REFUGEE COUNCIL (G),1885979,"35,000.00"
Home Office,UKBA - UK Border Agency,07/01/2011,Grants,UKBA - UK Border Agency,REFUGEE COUNCIL 1 (G),1885980,"322,504.41"
Home Office,UKBA - UK Border Agency,12/01/2011,Grants,UKBA - UK Border Agency,ISLE OF ANGLESEY COUNTY COUNCIL 1 (G),1885891,"29,880.50"
Home Office,UKBA - UK Border Agency,12/01/2011,Grants,UKBA - UK Border Agency,CENTRAL BEDFORDSHIRE COUNCIL (G),1885894,"30,405.74"
Home Office,UKBA - UK Border Agency,12/01/2011,Grants,UKBA - UK Border Agency,LONDON BOROUGH OF BROMLEY (G),1885896,"34,342.38"
Home Office,UKBA - UK Border Agency,12/01/2011,Grants,UKBA - UK Border Agency,CALDERDALE MBC (G),1885898,"524,844.48"
Home Office,UKBA - UK Border Agency,12/01/2011,Grants,UKBA - UK Border Agency,LONDON BOROUGH OF CAMDEN 1 (G),1885900,"191,897.46"
Home Office,UKBA - UK Border Agency,12/01/2011,Grants,UKBA - UK Border Agency,CORPORATION OF LONDON (G),1885904,"107,933.87"
Home Office,UKBA - UK Border Agency,12/01/2011,Grants,UKBA - UK Border Agency,EAST SUSSEX COUNTY COUNCIL 1 (G),1885905,"28,303.63"
Home Office,UKBA - UK Border Agency,12/01/2011,Grants,UKBA - UK Border Agency,HALTON BOROUGH COUNCIL (G),1885906,"60,482.48"
Home Office,UKBA - UK Border Agency,12/01/2011,Grants,UKBA - UK Border Agency,LANCASHIRE COUNTY COUNCIL 1 (G),1885908,"86,038.92"
Home Office,UKBA - UK Border Agency,12/01/2011,Grants,UKBA - UK Border Agency,LEICESTERSHIRE COUNTY COUNCIL 1 (G),1885909,"776,329.99"
Home Office,UKBA - UK Border Agency,12/01/2011,Grants,UKBA - UK Border Agency,NORTHAMPTONSHIRE COUNTY COUNCIL 2 (G),1885911,"928,266.90"
Home Office,UKBA - UK Border Agency,12/01/2011,Grants,UKBA - UK Border Agency,TRAFFORD METROPOLITAN BOROUGH COUNCIL (G),1885918,"108,724.78"
Home Office,UKBA - UK Border Agency,12/01/2011,Grants,UKBA - UK Border Agency,WOKINGHAM DISTRICT COUNCIL 1 (G),1885920,"27,608.08"
Home Office,UKBA - UK Border Agency,12/01/2011,Grants,UKBA - UK Border Agency,CENTRAL BEDFORDSHIRE COUNCIL (G),1885934,"549,496.29"
Home Office,UKBA - UK Border Agency,12/01/2011,Grants,UKBA - UK Border Agency,LUTON BOROUGH COUNCIL (G),1885938,"54,371.13"
Home Office,UKBA - UK Border Agency,12/01/2011,Grants,UKBA - UK Border Agency,MANCHESTER CITY COUNCIL (G),1885954,"692,167.08"
Home Office,UKBA - UK Border Agency,12/01/2011,Grants,UKBA - UK Border Agency,STOCKPORT METROPOLITAN BC 1 (G),1885956,"37,529.64"
Home Office,UKBA - UK Border Agency,12/01/2011,Grants,UKBA - UK Border Agency,SUFFOLK COUNTY COUNCIL (G),1885957,"563,138.70"
Home Office,UKBA - UK Border Agency,12/01/2011,Grants,UKBA - UK Border Agency,SUNDERLAND CITY COUNCIL (G),1885959,"44,760.93"
Home Office,UKBA - UK Border Agency,12/01/2011,Grants,UKBA - UK Border Agency,SLOUGH BOROUGH COUNCIL (G),1885969,"360,081.90"
Home Office,UKBA - UK Border Agency,12/01/2011,Grants,UKBA - UK Border Agency,WARWICKSHIRE COUNTY COUNCIL 1 (G),1885970,"1,520,550.36"
Home Office,UKBA - UK Border Agency,12/01/2011,Grants,UKBA - UK Border Agency,GLASGOW CITY COUNCIL 1 (G),1885975,"240,000.00"
Home Office,UKBA - UK Border Agency,12/01/2011,Grants,UKBA - UK Border Agency,LONDON BOROUGH OF ISLINGTON (G),1885976,"637,369.67"
Home Office,UKBA - UK Border Agency,12/01/2011,Grants,UKBA - UK Border Agency,CARDONALD COLLEGE (G),1889207,"51,280.27"
Home Office,UKBA - UK Border Agency,12/01/2011,Grants,UKBA - UK Border Agency,LONDON BOROUGH OF GREENWICH 1 (G),1882944,"64,050.00"
Home Office,UKBA - UK Border Agency,12/01/2011,Grants,UKBA - UK Border Agency,LEICESTERSHIRE COUNTY COUNCIL 1 (G),1882945,"106,950.00"
Home Office,UKBA - UK Border Agency,12/01/2011,Grants,UKBA - UK Border Agency,OXFORDSHIRE COUNTY COUNCIL 1 (G),1882946,"126,750.00"
Home Office,UKBA - UK Border Agency,14/01/2011,Grants,UKBA - UK Border Agency,WEST LONDON PARTNERSHIP (G),1890515,"26,335.23"
Home Office,UKBA - UK Border Agency,14/01/2011,Grants,UKBA - UK Border Agency,BLACKBURNE HOUSE (WOMENS' TECHNOLOGY & ED CENTRE),1890532,"52,834.13"
Home Office,UKBA - UK Border Agency,18/01/2011,Grants,UKBA - UK Border Agency,REFUGEE ACTION (G),1892592,"83,749.12"
Home Office,UKBA - UK Border Agency,19/01/2011,Grants,UKBA - UK Border Agency,LONDON BOROUGH OF BARKING & DAGENHAM (G),1888025,"38,550.00"
Home Office,UKBA - UK Border Agency,19/01/2011,Grants,UKBA - UK Border Agency,LONDON BOROUGH OF SOUTHWARK 1 (G),1888029,"239,100.00"
Home Office,UKBA - UK Border Agency,19/01/2011,Grants,UKBA - UK Border Agency,LONDON BOROUGH OF HACKNEY 1,1888628,"108,605.16"
Home Office,UKBA - UK Border Agency,19/01/2011,Grants,UKBA - UK Border Agency,HERTFORDSHIRE COUNTY COUNCIL 1 (G),1888630,"820,697.73"
Home Office,UKBA - UK Border Agency,19/01/2011,Grants,UKBA - UK Border Agency,NEWCASTLE CITY COUNCIL (G),1888633,"607,982.07"
Home Office,UKBA - UK Border Agency,19/01/2011,Grants,UKBA - UK Border Agency,MANCHESTER CITY COUNCIL (G),1889021,"457,334.82"
Home Office,UKBA - UK Border Agency,19/01/2011,Grants,UKBA - UK Border Agency,WEST SUSSEX COUNTY COUNCIL 1 (G),1889022,"516,949.24"
Home Office,UKBA - UK Border Agency,19/01/2011,Grants,UKBA - UK Border Agency,CHESHIRE EAST BC (G),1889030,"133,692.81"
Home Office,UKBA - UK Border Agency,19/01/2011,Grants,UKBA - UK Border Agency,ESSEX COUNTY COUNCIL 1 (G),1889033,"655,329.30"
Home Office,UKBA - UK Border Agency,19/01/2011,Grants,UKBA - UK Border Agency,LONDON BOROUGH OF LEWISHAM 1 (G),1889035,"152,687.61"
Home Office,UKBA - UK Border Agency,19/01/2011,Grants,UKBA - UK Border Agency,LONDON BOROUGH OF MERTON 2 (G),1889037,"65,262.15"
Home Office,UKBA - UK Border Agency,19/01/2011,Grants,UKBA - UK Border Agency,NEWPORT COUNTY BOROUGH COUNCIL 1 (G),1889039,"62,377.71"
Home Office,UKBA - UK Border Agency,19/01/2011,Grants,UKBA - UK Border Agency,LONDON BOROUGH OF CAMDEN 1 (G),1889188,"205,050.00"
Home Office,UKBA - UK Border Agency,19/01/2011,Grants,UKBA - UK Border Agency,LONDON BOROUGH OF HILLINGDON 1 (G),1889190,"782,550.00"
Home Office,UKBA - UK Border Agency,19/01/2011,Grants,UKBA - UK Border Agency,BRIGHTON & HOVE COUNCIL (G),1892067,"223,151.37"
Home Office,UKBA - UK Border Agency,19/01/2011,Grants,UKBA - UK Border Agency,HAMPSHIRE COUNTY COUNCIL 1 (G),1892069,"447,234.12"
Home Office,UKBA - UK Border Agency,19/01/2011,Grants,UKBA - UK Border Agency,LEEDS CITY COUNCIL 1 (G),1892072,"595,676.10"
Home Office,UKBA - UK Border Agency,19/01/2011,Grants,UKBA - UK Border Agency,NORTHAMPTONSHIRE COUNTY COUNCIL 2 (G),1892074,"1,342,339.05"
Home Office,UKBA - UK Border Agency,19/01/2011,Grants,UKBA - UK Border Agency,SURREY COUNTY COUNCIL 1 (G),1892076,"736,690.35"
Home Office,UKBA - UK Border Agency,19/01/2011,Grants,UKBA - UK Border Agency,WILTSHIRE COUNTY COUNCIL 1 (G),1892080,"49,965.93"
Home Office,UKBA - UK Border Agency,19/01/2011,Grants,UKBA - UK Border Agency,LONDON BOROUGH OF HAMMERSMITH & FULHAM 1 (G),1892087,"162,300.00"
Home Office,UKBA - UK Border Agency,19/01/2011,Grants,UKBA - UK Border Agency,LONDON BOROUGH OF HOUNSLOW 1 (G),1892089,"117,900.00"
Home Office,UKBA - UK Border Agency,19/01/2011,Grants,UKBA - UK Border Agency,SHEFFIELD CITY COUNCIL 1 (G),1892092,"105,000.00"
Home Office,UKBA - UK Border Agency,19/01/2011,Grants,UKBA - UK Border Agency,WEST SUSSEX COUNTY COUNCIL 1 (G),1892099,"62,375.00"
Home Office,UKBA - UK Border Agency,19/01/2011,Grants,UKBA - UK Border Agency,LEEDS CITY COUNCIL 1 (G),1892792,"145,779.77"
Home Office,UKBA - UK Border Agency,19/01/2011,Grants,UKBA - UK Border Agency,LUTON BOROUGH COUNCIL (G),1892794,"81,070.35"
Home Office,UKBA - UK Border Agency,19/01/2011,Grants,UKBA - UK Border Agency,SALFORD CITY COUNCIL (G),1892800,"255,392.15"
Home Office,UKBA - UK Border Agency,19/01/2011,Grants,UKBA - UK Border Agency,CAMBRIDGESHIRE COUNTY COUNCIL (G),1892935,"104,850.00"
Home Office,UKBA - UK Border Agency,19/01/2011,Grants,UKBA - UK Border Agency,LONDON BOROUGH  WALTHAM FOREST (G),1892938,"77,850.00"
Home Office,UKBA - UK Border Agency,22/01/2011,Grants,UKBA - UK Border Agency,MANCHESTER CITY COUNCIL (G),1891736,"39,717.25"
Home Office,UKBA - UK Border Agency,25/01/2011,Grants,UKBA - UK Border Agency,MULTI ETHNIC ABERDEEN LTD,1898823,"57,965.33"
Home Office,UKBA - UK Border Agency,26/01/2011,Grants,UKBA - UK Border Agency,LONDON BOROUGH OF HOUNSLOW 1 (G),1894641,"276,450.18"
Home Office,UKBA - UK Border Agency,26/01/2011,Grants,UKBA - UK Border Agency,WORCESTERSHIRE COUNTY COUNCIL 1 (G),1894651,"599,750.79"
Home Office,UKBA - UK Border Agency,26/01/2011,Grants,UKBA - UK Border Agency,NOTTINGHAMSHIRE COUNTY COUNCIL 2 (G),1898303,"401,984.73"
Home Office,UKBA - UK Border Agency,26/01/2011,Grants,UKBA - UK Border Agency,TELFORD & WREKIN COUNCIL (G),1898305,"34,718.29"
Home Office,UKBA - UK Border Agency,26/01/2011,Grants,UKBA - UK Border Agency,LONDON BOROUGH OF BARKING & DAGENHAM (G),1898313,"74,409.87"
Home Office,UKBA - UK Border Agency,26/01/2011,Grants,UKBA - UK Border Agency,KENT COUNTY COUNCIL 1 (G),1898315,"1,030,596.76"
Home Office,UKBA - UK Border Agency,26/01/2011,Grants,UKBA - UK Border Agency,LEICESTERSHIRE COUNTY COUNCIL 1 (G),1898319,"423,160.20"
Home Office,UKBA - UK Border Agency,26/01/2011,Grants,UKBA - UK Border Agency,LONDON BOROUGH OF SOUTHWARK 1 (G),1898326,"212,015.28"
Home Office,UKBA - UK Border Agency,26/01/2011,Grants,UKBA - UK Border Agency,THURROCK COUNCIL 1 (G),1898328,"355,475.48"
Home Office,UKBA - UK Border Agency,26/01/2011,Grants,UKBA - UK Border Agency,HERTFORDSHIRE COUNTY COUNCIL 1 (G),1898336,"44,250.00"
Home Office,UKBA - UK Border Agency,26/01/2011,Grants,UKBA - UK Border Agency,LONDON BOROUGH OF CROYDON 1 (G),1899075,"2,717,267.52"
Home Office,UKBA - UK Border Agency,26/01/2011,Grants,UKBA - UK Border Agency,BRITISH REFUGEE COUNCIL 2 (G),1899078,"75,314.30"
Home Office,UKBA - UK Border Agency,26/01/2011,Grants,UKBA - UK Border Agency,BOLTON MBC 1 (G),1899079,"176,463.42"
Home Office,UKBA - UK Border Agency,27/01/2011,Grants,UKBA - UK Border Agency,WARRINGTON BOROUGH COUNCIL (G),1899071,"78,553.22"
Home Office,UKBA - UK Border Agency,27/01/2011,Grants,UKBA - UK Border Agency,THE INTERNATIONAL ORG FOR MIGRATION (G),1899189,"1,087,500.00"
Home Office,UKBA - UK Border Agency,28/01/2011,Grants,UKBA - UK Border Agency,QED-UK (G),1900863,"81,662.25"
Home Office,UKBA - UK Border Agency,31/01/2011,IT & Telecoms Components.Computer Equip (FA),UKBA - UK Border Agency,IBM DIRECT UNITED KINGDOM LTD,1900124,"4,020,903.60"
Home Office,UKBA - UK Border Agency,05/01/2011,IT & Telecoms Components.Computer Equip (FA),UKBA - UK Border Agency,IBM DIRECT UNITED KINGDOM LTD,1871646,"1,438,400.93"
Home Office,UKBA - UK Border Agency,05/01/2011,IT & Telecoms Components.Computer Equip (FA),UKBA - UK Border Agency,IBM DIRECT UNITED KINGDOM LTD,1880519,"1,428,003.35"
Home Office,UKBA - UK Border Agency,24/01/2011,Politics & Civic Affairs.Displaced pers.assistance,UKBA - UK Border Agency,SODEXHO PASS LTD,1896075,"967,255.28"
Home Office,UKBA - UK Border Agency,28/01/2011,Politics & Civic Affairs.Displaced pers.assistance,UKBA - UK Border Agency,SODEXHO PASS LTD,1900021,"952,648.11"
Home Office,UKBA - UK Border Agency,10/01/2011,Politics & Civic Affairs.Displaced pers.assistance,UKBA - UK Border Agency,SODEXHO PASS LTD,1885763,"939,565.44"
Home Office,UKBA - UK Border Agency,17/01/2011,Politics & Civic Affairs.Displaced pers.assistance,UKBA - UK Border Agency,SODEXHO PASS LTD,1890741,"929,023.42"
Home Office,UKBA - UK Border Agency,11/01/2011,Politics & Civic Affairs.Displaced pers.assistance,UKBA - UK Border Agency,SODEXHO PASS LTD,1887807,"891,616.96"
Home Office,UKBA - UK Border Agency,17/01/2011,Politics & Civic Affairs.Human aid & relief Sect 4,UKBA - UK Border Agency,CLEARSPRINGS MANAGEMENT LTD,1890558,"806,883.98"
Home Office,UKBA - UK Border Agency,13/01/2011,Politics & Civic Affairs.Human aid & relief Sect 4,UKBA - UK Border Agency,LEEDS CITY COUNCIL,1889571,"728,858.08"
Home Office,UKBA - UK Border Agency,05/01/2011,Politics & Civic Affairs.Human aid & relief Sect 4,UKBA - UK Border Agency,GLASGOW CITY COUNCIL,1883645,"661,255.68"
Home Office,UKBA - UK Border Agency,19/01/2011,Politics & Civic Affairs.Human aid & relief Sect 4,UKBA - UK Border Agency,LEEDS CITY COUNCIL,1892875,"654,991.48"
Home Office,UKBA - UK Border Agency,21/01/2011,Politics & Civic Affairs.Human aid & relief Sect 4,UKBA - UK Border Agency,GLASGOW CITY COUNCIL,1895861,"633,230.08"
Home Office,UKBA - UK Border Agency,19/01/2011,Politics & Civic Affairs.REFUGEE PROG. SECT 95,UKBA - UK Border Agency,MANCHESTER CITY COUNCIL,1892746,"594,596.76"
Home Office,UKBA - UK Border Agency,19/01/2011,Politics & Civic Affairs.Human aid & relief Sect 4,UKBA - UK Border Agency,NEWCASTLE CITY COUNCIL,1893471,"517,273.69"
Home Office,UKBA - UK Border Agency,18/01/2011,Politics & Civic Affairs.Human aid & relief Sect 4,UKBA - UK Border Agency,UNITED PROPERTY MANAGEMENT,1892101,"514,972.77"
Home Office,UKBA - UK Border Agency,05/01/2011,Politics & Civic Affairs.Human aid & relief Sect 4,UKBA - UK Border Agency,BIRMINGHAM CITY COUNCIL,1884383,"504,233.53"
Home Office,UKBA - UK Border Agency,05/01/2011,Politics & Civic Affairs.Human aid & relief Sect 4,UKBA - UK Border Agency,BIRMINGHAM CITY COUNCIL,1884359,"480,171.41"
Home Office,UKBA - UK Border Agency,17/01/2011,Politics & Civic Affairs.Human aid & relief Sect 4,UKBA - UK Border Agency,YMCA GLASGOW,1891498,"454,233.57"
Home Office,UKBA - UK Border Agency,18/01/2011,Politics & Civic Affairs.Human aid & relief Sect 4,UKBA - UK Border Agency,UNITED PROPERTY MANAGEMENT,1892078,"451,074.72"
Home Office,UKBA - UK Border Agency,17/01/2011,Politics & Civic Affairs.Human aid & relief Sect 4,UKBA - UK Border Agency,ANGEL GROUP,1891501,"431,402.88"
Home Office,UKBA - UK Border Agency,18/01/2011,Politics & Civic Affairs.Human aid & relief Sect 4,UKBA - UK Border Agency,HAPPY HOMES UK LTD,1891687,"416,536.63"
Home Office,UKBA - UK Border Agency,17/01/2011,Politics & Civic Affairs.Human aid & relief Sect 4,UKBA - UK Border Agency,PRIORITY PROPERTIES NORTH WEST,1890611,"415,845.22"
Home Office,UKBA - UK Border Agency,21/01/2011,Politics & Civic Affairs.Human aid & relief Sect 4,UKBA - UK Border Agency,CLEARSPRINGS MANAGEMENT LTD,1890544,"343,557.92"
Home Office,UKBA - UK Border Agency,18/01/2011,Professional & Admin Services.Corp Business IT Serv - PROG,UKBA - UK Border Agency,SERCO  LTD,1881073,"301,824.60"
Home Office,UKBA - UK Border Agency,17/01/2011,Politics & Civic Affairs.Human aid & relief Sect 4,UKBA - UK Border Agency,PRIORITY PROPERTIES NORTH WEST,1890651,"301,482.39"
Home Office,UKBA - UK Border Agency,18/01/2011,Politics & Civic Affairs.Human aid & relief Sect 4,UKBA - UK Border Agency,CARDIFF COUNTY COUNCIL,1892639,"294,785.09"
Home Office,UKBA - UK Border Agency,14/01/2011,Politics & Civic Affairs.Human aid & relief Sect 4,UKBA - UK Border Agency,JOMAST PROPERTY AND FINANCE CO LTD,1890530,"283,564.05"
Home Office,UKBA - UK Border Agency,18/01/2011,Politics & Civic Affairs.Human aid & relief Sect 4,UKBA - UK Border Agency,METROPOLITAN SUPPORT TRUST (EAST MIDLANDS),1892600,"258,346.13"
Home Office,UKBA - UK Border Agency,17/01/2011,Politics & Civic Affairs.Refugee repatriation.serv,UKBA - UK Border Agency,G4S JUSTICE SERVICES LTD - AIM,1880351,"242,648.88"
Home Office,UKBA - UK Border Agency,17/01/2011,Politics & Civic Affairs.Human aid & relief Sect 4,UKBA - UK Border Agency,CLEARSPRINGS MANAGEMENT LTD,1890556,"232,959.07"
Home Office,UKBA - UK Border Agency,10/01/2011,Politics & Civic Affairs.Displaced pers.assistance,UKBA - UK Border Agency,SODEXHO PASS LTD,1885760,"230,295.08"
Home Office,UKBA - UK Border Agency,17/01/2011,Politics & Civic Affairs.Human aid & relief Sect 4,UKBA - UK Border Agency,LIVERPOOL CITY COUNCIL,1891485,"222,713.58"
Home Office,UKBA - UK Border Agency,18/01/2011,Politics & Civic Affairs.Human aid & relief Sect 4,UKBA - UK Border Agency,UNITED PROPERTY MANAGEMENT,1892075,"197,968.88"
Home Office,UKBA - UK Border Agency,17/01/2011,Politics & Civic Affairs.Human aid & relief Sect 4,UKBA - UK Border Agency,PRIORITY PROPERTIES NORTH WEST,1890614,"182,430.18"
Home Office,UKBA - UK Border Agency,31/01/2011,Storage & Mail Services.Messenger & Reception Services,UKBA - UK Border Agency,SIEMENS BUSINESS SERVICES LTD,1885046,"174,486.30"
Home Office,UKBA - UK Border Agency,10/01/2011,Asylum Provision.Asylum serv Sect4Vouchers,UKBA - UK Border Agency,SODEXHO PASS LTD,1885762,"172,058.82"
Home Office,UKBA - UK Border Agency,17/01/2011,Politics & Civic Affairs.Human aid & relief Sect 4,UKBA - UK Border Agency,CLEARSPRINGS MANAGEMENT LTD,1890563,"169,256.34"
Home Office,UKBA - UK Border Agency,11/01/2011,Asylum Provision.Asylum serv Sect4Vouchers,UKBA - UK Border Agency,SODEXHO PASS LTD,1887809,"168,776.56"
Home Office,UKBA - UK Border Agency,17/01/2011,Asylum Provision.Asylum serv Sect4Vouchers,UKBA - UK Border Agency,SODEXHO PASS LTD,1890743,"168,711.57"
Home Office,UKBA - UK Border Agency,24/01/2011,Asylum Provision.Asylum serv Sect4Vouchers,UKBA - UK Border Agency,SODEXHO PASS LTD,1896087,"163,554.61"
Home Office,UKBA - UK Border Agency,28/01/2011,Asylum Provision.Asylum serv Sect4Vouchers,UKBA - UK Border Agency,SODEXHO PASS LTD,1900025,"162,650.37"
Home Office,UKBA - UK Border Agency,17/01/2011,Politics & Civic Affairs.Human aid & relief Sect 4,UKBA - UK Border Agency,ANGEL GROUP,1891500,"146,238.22"
Home Office,UKBA - UK Border Agency,17/01/2011,Politics & Civic Affairs.Human aid & relief Sect 4,UKBA - UK Border Agency,PRIORITY PROPERTIES NORTH WEST,1890645,"142,281.47"
Home Office,UKBA - UK Border Agency,17/01/2011,Politics & Civic Affairs.Human aid & relief Sect 4,UKBA - UK Border Agency,ANGEL GROUP,1891499,"141,805.88"
Home Office,UKBA - UK Border Agency,31/01/2011,IT & Telecoms Components.Computer Equip (FA),UKBA - UK Border Agency,SPECIALIST COMPUTER CENTRES PLC,1871918,"141,554.60"
Home Office,UKBA - UK Border Agency,05/01/2011,Politics & Civic Affairs.Human aid & relief Sect 4,UKBA - UK Border Agency,NORTHERN IRELAND HOUSING EXEC,1884360,"140,358.38"
Home Office,UKBA - UK Border Agency,26/01/2011,IT & Telecoms Components.Computer Equip (FA),UKBA - UK Border Agency,SPECIALIST COMPUTER CENTRES PLC,1879580,"135,621.69"
Home Office,UKBA - UK Border Agency,21/01/2011,Politics & Civic Affairs.Human aid & relief Sect 4,UKBA - UK Border Agency,NORTHERN IRELAND HOUSING EXEC,1895870,"132,890.36"
Home Office,UKBA - UK Border Agency,25/01/2011,Asylum Provision.Asylum Cont Out Serv,UKBA - UK Border Agency,REFUGEE COUNCIL,1897104,"132,480.00"
Home Office,UKBA - UK Border Agency,17/01/2011,Politics & Civic Affairs.Human aid & relief Sect 4,UKBA - UK Border Agency,CLEARSPRINGS MANAGEMENT LTD,1890565,"129,177.35"
Home Office,UKBA - UK Border Agency,18/01/2011,Professional & Admin Services.Corp Business IT Serv - PROG,UKBA - UK Border Agency,SERCO  LTD,1881072,"116,287.40"
Home Office,UKBA - UK Border Agency,12/01/2011,Asylum Provision.Asylum Cont Out Serv,UKBA - UK Border Agency,LEEDS CITY COUNCIL,1888663,"110,170.00"
Home Office,UKBA - UK Border Agency,31/01/2011,IT & Telecoms Components.Standard Software  (FA),UKBA - UK Border Agency,FUJITSU SERVICES (ALCEDO) LTD,1884908,"100,061.82"
Home Office,UKBA - UK Border Agency,10/01/2011,Storage & Mail Services.Messenger & Reception Services,UKBA - UK Border Agency,SIEMENS BUSINESS SERVICES LTD,1873695,"74,137.37"
Home Office,UKBA - UK Border Agency,20/01/2011,Politics & Civic Affairs.REFUGEE PROG. SECT 95,UKBA - UK Border Agency,CITY AND COUNTY OF SWANSEA,1893738,"68,993.25"
Home Office,UKBA - UK Border Agency,14/01/2011,Asylum Provision.Asylum Cont Out Serv,UKBA - UK Border Agency,SCOTTISH REFUGEE COUNCIL ( SCOTLAND ),1889708,"65,694.00"
Home Office,UKBA - UK Border Agency,06/01/2011,Asylum Provision.Asylum Cont Out Serv,UKBA - UK Border Agency,NORTH OF ENGLAND REFUGEE SERVICES LTD,1884436,"57,256.00"
Home Office,UKBA - UK Border Agency,11/01/2011,Asylum Provision.Asylum Cont Out Serv,UKBA - UK Border Agency,WELSH REFUGEE COUNCIL,1883604,"55,392.00"
Home Office,UKBA - UK Border Agency,11/01/2011,Professional & Admin Services.Business admin services - PROG,UKBA - UK Border Agency,ADVANTAGE TECHNICAL RESOURCING,1886669,"48,222.00"
Home Office,UKBA - UK Border Agency,06/01/2011,IT & Telecoms Components.Computer Equip (FA),UKBA - UK Border Agency,IBM DIRECT UNITED KINGDOM LTD,1879457,"40,032.24"
Home Office,UKBA - UK Border Agency,06/01/2011,IT & Telecoms Components.Computer Equip (FA),UKBA - UK Border Agency,IBM DIRECT UNITED KINGDOM LTD,1879357,"28,594.45"
Home Office,UKBA - UK Border Agency,06/01/2011,IT & Telecoms Components.Computer Equip (FA),UKBA - UK Border Agency,IBM DIRECT UNITED KINGDOM LTD,1879353,"26,437.50"
Home Office,UKBA - UK Border Agency,17/01/2011,"Public Order, Security, Safety.Domestic Escort Services",UKBA - UK Border Agency,G4S CARE & JUSTICE SERVICES (UK) LTD,1880363,"1,419,583.40"
Home Office,UKBA - UK Border Agency,17/01/2011,"Public Order, Security, Safety.Domestic Escort Services",UKBA - UK Border Agency,G4S CARE & JUSTICE SERVICES (UK) LTD,1880379,"1,362,096.84"
Home Office,UKBA - UK Border Agency,06/01/2011,"Public Order, Security Service.Detention Services Contracts",UKBA - UK Border Agency,THE GEO GROUP UK LTD,1883635,"1,215,286.05"
Home Office,UKBA - UK Border Agency,07/01/2011,Professional & Admin Services.Residential Rental - PROG,UKBA - UK Border Agency,PRUDENTIAL PROP INV MANAGERS L,1878213,"1,155,786.11"
Home Office,UKBA - UK Border Agency,31/01/2011,"Public Order, Security Service.Detention Services Contracts",UKBA - UK Border Agency,G4S CARE & JUSTICE SERVICES (UK) LTD,1884857,"1,002,977.64"
Home Office,UKBA - UK Border Agency,24/01/2011,"Public Order, Security Service.Detention Services Contracts",UKBA - UK Border Agency,SERCO  LTD,1882306,"897,746.31"
Home Office,UKBA - UK Border Agency,12/01/2011,"Public Order, Security Service.Detention Services Contracts",UKBA - UK Border Agency,THE GEO GROUP UK LTD,1887070,"584,275.26"
Home Office,UKBA - UK Border Agency,31/01/2011,"Public Order, Security Service.Detention Services Contracts",UKBA - UK Border Agency,G4S CARE & JUSTICE SERVICES (UK) LTD,1884868,"478,277.59"
Home Office,UKBA - UK Border Agency,10/01/2011,"Public Order, Security, Safety.Escorting services",UKBA - UK Border Agency,G4S CARE & JUSTICE SERVICES (UK) LTD,1873819,"394,867.46"
Home Office,UKBA - UK Border Agency,12/01/2011,"Public Order, Security Service.Detention Services Contracts",UKBA - UK Border Agency,THE GEO GROUP UK LTD,1887056,"144,711.68"
Home Office,UKBA - UK Border Agency,07/01/2011,"Public Order, Security, Safety.Domestic Escort Services",UKBA - UK Border Agency,G4S CARE & JUSTICE SERVICES (UK) LTD,1871647,"117,415.36"
Home Office,UKBA - UK Border Agency,18/01/2011,"Public Order, Security, Safety.Escorting services",UKBA - UK Border Agency,G4S CARE & JUSTICE SERVICES (UK) LTD,1881117,"92,318.89"
Home Office,UKBA - UK Border Agency,10/01/2011,"Public Order, Security, Safety.Confinement Surveillance",UKBA - UK Border Agency,SERCO  LTD,1873866,"86,717.30"
Home Office,UKBA - UK Border Agency,18/01/2011,"Public Order, Security, Safety.Escorting services",UKBA - UK Border Agency,G4S CARE & JUSTICE SERVICES (UK) LTD,1881115,"83,316.39"
Home Office,UKBA - UK Border Agency,18/01/2011,"Public Order, Security, Safety.Escorting services",UKBA - UK Border Agency,G4S CARE & JUSTICE SERVICES (UK) LTD,1881107,"80,740.27"
Home Office,UKBA - UK Border Agency,07/01/2011,"Public Order, Security, Safety.Domestic Escort Services",UKBA - UK Border Agency,G4S CARE & JUSTICE SERVICES (UK) LTD,1871649,"61,305.90"
Home Office,UKBA - UK Border Agency,25/01/2011,"Building, Construction Service.Refurbishment (FA)",UKBA - UK Border Agency,THE GEO GROUP UK LTD,1891913,"60,000.00"
Home Office,UKBA - UK Border Agency,17/01/2011,"Public Order, Security, Safety.Escorting services",UKBA - UK Border Agency,G4S CARE & JUSTICE SERVICES (UK) LTD,1880373,"53,265.43"
Home Office,UKBA - UK Border Agency,17/01/2011,"Public Order, Security, Safety.Escorting services",UKBA - UK Border Agency,G4S CARE & JUSTICE SERVICES (UK) LTD,1880360,"52,457.52"
Home Office,UKBA - UK Border Agency,10/01/2011,"Building, Construction Service.Build a new structure (FA)",UKBA - UK Border Agency,IBM DIRECT UNITED KINGDOM LTD,1884902,"39,732.00"
Home Office,UKBA - UK Border Agency,11/01/2011,Professional & Admin Services.Residential Rental - PROG,UKBA - UK Border Agency,MANCHESTER AIRPORT PLC,1887859,"30,109.38"
Home Office,UKBA - UK Border Agency,14/01/2011,"Public Order, Security, Safety.Escorting services",UKBA - UK Border Agency,G4S CARE & JUSTICE SERVICES (UK) LTD,1877484,"25,788.14"
Home Office,UKBA - UK Border Agency,17/01/2011,"Public Order, Security, Safety.Escorting services",UKBA - UK Border Agency,G4S CARE & JUSTICE SERVICES (UK) LTD,1880376,"25,788.14"
Home Office,UKBA - UK Border Agency,06/01/2011,"Public Order, Security Service.Detention Services Contracts",UKBA - UK Border Agency,THE GEO GROUP UK LTD,1883631,"25,123.06"
Home Office,UKBA - UK Border Agency,18/01/2011,Other Government Department,UKBA - UK Border Agency,BIRMINGHAM CITY COUNCIL,1891558,"43,920.00"
Home Office,UKBA - UK Border Agency,24/01/2011,Storage & Mail Services.Messenger & Reception Services,UKBA - UK Border Agency,NPIA (National Policing Improvement Agency),1896145,"35,628.39"
Home Office,UKBA - UK Border Agency,18/01/2011,Storage & Mail Services.Messenger & Reception Services,UKBA - UK Border Agency,IDENTITY & PASSPORTS SERVICE,1892586,"35,377.98"
Home Office,UKBA - UK Border Agency,31/01/2011,"IT, Broadcasting & Telecomms.IT Run Costs other -Prog",UKBA - UK Border Agency,FUJITSU SERVICES (ALCEDO) LTD,1884911,"29,483.34"
Home Office,UKBA - UK Border Agency,17/01/2011,"IT, Broadcasting & Telecomms.Software - PROG",UKBA - UK Border Agency,FUJITSU SERVICES LTD,1880159,"587,500.00"
Home Office,UKBA - UK Border Agency,26/01/2011,"IT, Broadcasting & Telecomms.IT Run Cost Info Support-PROG",UKBA - UK Border Agency,INSIGHT DIRECT (UK) LTD,1879046,"443,405.29"
Home Office,UKBA - UK Border Agency,21/01/2011,"Transport, Storage & Mail Serv.Vehicle Hire Rent & Lease-PROG",UKBA - UK Border Agency,TNT UK LIMITED,1894972,"272,939.67"
Home Office,UKBA - UK Border Agency,18/01/2011,"Transport, Storage & Mail Serv.Parking fees - PROG",UKBA - UK Border Agency,BAA BUSINESS SUPPORT CENTRE LTD,1891989,"257,589.85"
Home Office,UKBA - UK Border Agency,24/01/2011,"Public Order, Security, Safety.Security Guard Services - PROG",UKBA - UK Border Agency,EAMUS CORK SOLUTIONS,1888143,"152,581.22"
Home Office,UKBA - UK Border Agency,18/01/2011,"Transport, Storage & Mail Serv.Parking fees - PROG",UKBA - UK Border Agency,BAA BUSINESS SUPPORT CENTRE LTD,1891984,"127,909.34"
Home Office,UKBA - UK Border Agency,31/01/2011,"Law Enforcement & safety Equip.Haulage, Storage & Disp (HSD)",UKBA - UK Border Agency,ASSOCIATED BRITISH PORTS,1901012,"105,349.30"
Home Office,UKBA - UK Border Agency,24/01/2011,Management & Admin Serv.Overseas Posting Costs-PROG,UKBA - UK Border Agency,CROWN RELOCATIONS,1896864,"98,659.82"
Home Office,UKBA - UK Border Agency,17/01/2011,"IT, Broadcasting & Telecomms.IT Run Cost Info Support-PROG",UKBA - UK Border Agency,INSIGHT DIRECT (UK) LTD,1879044,"94,616.88"
Home Office,UKBA - UK Border Agency,06/01/2011,Storage & Mail Services.Messenger & Reception Services,UKBA - UK Border Agency,SMITHS DETECTION INTERNATIONAL UK,1884431,"94,000.00"
Home Office,UKBA - UK Border Agency,31/01/2011,Animal Material & Supplies.Detect Dogs-Kennel & Misc-PROG,UKBA - UK Border Agency,WAGTAIL,1901731,"88,015.38"
Home Office,UKBA - UK Border Agency,07/01/2011,Animal Material & Supplies.Detect Dogs-Kennel & Misc-PROG,UKBA - UK Border Agency,WAGTAIL,1885654,"86,181.73"
Home Office,UKBA - UK Border Agency,25/01/2011,Management & Admin Serv.Overseas Posting Costs-PROG,UKBA - UK Border Agency,PARIS APARTMENT SERVICES,1897211,"62,777.00"
Home Office,UKBA - UK Border Agency,10/01/2011,Travel & Food & Lodging.Juxtaposed Oversea Trav�PROG,UKBA - UK Border Agency,THE CHANNEL TUNNEL GROUP LTD,1884921,"60,227.00"
Home Office,UKBA - UK Border Agency,04/01/2011,Management & Admin Serv.Overseas Posting Costs-PROG,UKBA - UK Border Agency,PARIS APARTMENT SERVICES,1881281,"47,807.00"
Home Office,UKBA - UK Border Agency,18/01/2011,Laboratory & Scientific Equip.Scientific Equip Running Costs,UKBA - UK Border Agency,AMERICAN SCIENCE & ENGINEERING INC,1892717,"44,425.58"
Home Office,UKBA - UK Border Agency,12/01/2011,Law Enforcement & safety Equip.Maint&Rep of Plant&Mach�PROG,UKBA - UK Border Agency,MORPHO UK LTD,1887040,"38,315.68"
Home Office,UKBA - UK Border Agency,18/01/2011,Laboratory & Scientific Equip.Scientific Equip Running Costs,UKBA - UK Border Agency,RAPISCAN SYSTEMS LTD,1892050,"38,265.71"
Home Office,UKBA - UK Border Agency,12/01/2011,Law Enforcement & safety Equip.Maint&Rep of Plant&Mach�PROG,UKBA - UK Border Agency,MORPHO UK LTD,1886818,"37,494.58"
Home Office,UKBA - UK Border Agency,25/01/2011,"IT, Broadcasting & Telecomms.IT Running Cost - Maint - PROG",UKBA - UK Border Agency,NPIA (National Policing Improvement Agency),1893686,"37,340.10"
Home Office,UKBA - UK Border Agency,27/01/2011,Law Enforcement & safety Equip.Security & Control Equip- PROG,UKBA - UK Border Agency,SAIC LIMITED,1891779,"35,284.80"
Home Office,UKBA - UK Border Agency,25/01/2011,"Vehicles, Ships, Airplanes.Vehicle Maint Equip (FA)- PROG",UKBA - UK Border Agency,FORTH ESTUARY ENGINEERING,1897108,"30,778.45"
Home Office,UKBA - UK Border Agency,28/01/2011,"Clothes, shoes & Personal Care.Clothing - PROG",UKBA - UK Border Agency,ALEXANDRA PLC,1755524,"29,180.41"
Home Office,UKBA - UK Border Agency,20/01/2011,Storage & Mail Services.Messenger & Reception Services,UKBA - UK Border Agency,TNT UK LIMITED,1893464,"28,595.51"
Home Office,UKBA - UK Border Agency,13/01/2011,"Transport, Storage & Mail Serv.Parking fees - PROG",UKBA - UK Border Agency,GATWICK AIRPORT LTD,1885811,"27,680.77"
Home Office,UKBA - UK Border Agency,24/01/2011,Management & Admin Serv.HR Serv-Personnel Relocat-PROG,UKBA - UK Border Agency,THE BRITISH SCHOOL OF BRUSSELS,1895767,"26,400.00"
Home Office,UKBA - UK Border Agency,11/01/2011,Management & Admin Serv.Corp & Bus Org Structure- PROG,UKBA - UK Border Agency,ALPINE RESOURCING LIMITED,1843329,"25,262.50"
Home Office,UKBA - UK Border Agency,14/01/2011,Management & Admin Serv.Corp & Bus Org Structure- PROG,UKBA - UK Border Agency,ALPINE RESOURCING LIMITED,1888827,"25,062.75"
Home Office,UKBA - UK Border Agency,14/01/2011,"Science, Technical & Research.Computer services - PROG",UKBA - UK Border Agency,IBM DIRECT UNITED KINGDOM LTD,1884873,"709,006.80"
Home Office,UKBA - UK Border Agency,14/01/2011,IT & Telecoms Components.Standard Software (FA),UKBA - UK Border Agency,KRONOS SYSTEMS LTD,1890125,"323,147.33"
Home Office,UKBA - UK Border Agency,10/01/2011,Professional & Admin Services.Consultancy - Advice - PROG,UKBA - UK Border Agency,ERNST AND YOUNG LLP,1884847,"199,177.48"
Home Office,UKBA - UK Border Agency,14/01/2011,"Public Order, Security, Safety.Security Guard Services - PROG",UKBA - UK Border Agency,OCS GROUP UK LTD,1884426,"146,927.68"
Home Office,UKBA - UK Border Agency,10/01/2011,Professional & Admin Services.Consultancy - Advice - PROG,UKBA - UK Border Agency,ERNST AND YOUNG LLP,1884853,"109,192.16"
Home Office,UKBA - UK Border Agency,10/01/2011,Professional & Admin Services.Consultancy - Advice - PROG,UKBA - UK Border Agency,ERNST AND YOUNG LLP,1884854,"102,988.87"
Home Office,UKBA - UK Border Agency,10/01/2011,Healthcare Services.Healthcare Services - ADMN,UKBA - UK Border Agency,HEALTH MANAGEMENT LTD,1875094,"86,491.13"
Home Office,UKBA - UK Border Agency,18/01/2011,"Transport, Storage & Mail Serv.Fuel & Vehicle Supp Serv- PROG",UKBA - UK Border Agency,INCHCAPE FLEET SOLUTIONS LTD,1891695,"81,351.60"
Home Office,UKBA - UK Border Agency,05/01/2011,"Professional & Admin Services.Patent, Copyright Law - ADMN",UKBA - UK Border Agency,MINISTERIE VAN JUSTITIE,1883453,"75,722.68"
Home Office,UKBA - UK Border Agency,14/01/2011,"Science, Technical & Research.Computer services - PROG",UKBA - UK Border Agency,KRONOS SYSTEMS LTD,1890126,"64,619.13"
Home Office,UKBA - UK Border Agency,05/01/2011,Generators & Equip (FA).Plant & machinery (FA),UKBA - UK Border Agency,ARQIVA LTD,1883406,"60,598.91"
Home Office,UKBA - UK Border Agency,14/01/2011,"Transport, Storage & Mail Serv.Mailing, Mail Delivery Service",UKBA - UK Border Agency,FRANCOTYP-POSTALIA LIMITED,1890440,"40,000.00"
Home Office,UKBA - UK Border Agency,19/01/2011,"Transport, Storage & Mail Serv.Fuel & Vehicle Supp Serv- PROG",UKBA - UK Border Agency,ARVAL UK LTD,1879061,"33,756.43"
Home Office,UKBA - UK Border Agency,20/01/2011,"Transport, Storage & Mail Serv.Fuel & Vehicle Supp Serv- PROG",UKBA - UK Border Agency,ARVAL UK LTD,1893614,"30,084.98"
Home Office,UKBA - UK Border Agency,25/01/2011,"Science, Technical & Research.Computer services - PROG",UKBA - UK Border Agency,AUDIT COMMISSION,1896800,"29,375.00"
Home Office,UKBA - UK Border Agency,25/01/2011,"Science, Technical & Research.Computer services - PROG",UKBA - UK Border Agency,ATOS ORIGIN IT SERVICES UK LIMITED- MEDICAL SERVICES,1897920,"27,214.80"
Home Office,UKBA - UK Border Agency,28/01/2011,Asylum Services.Public Expense Removals,UKBA - UK Border Agency,KRIMINAL VARDEN,1899799,"524,049.00"
Home Office,UKBA - UK Border Agency,28/01/2011,Asylum Services.Public Expense Removals,UKBA - UK Border Agency,KRIMINAL VARDEN,1899806,"522,942.00"
Home Office,UKBA - UK Border Agency,27/01/2011,Asylum Services.Public Expense Removals,UKBA - UK Border Agency,CARLSON WAGONLIT TRAVEL,1898930,"214,905.00"
Home Office,UKBA - UK Border Agency,05/01/2011,Asylum Services.Public Expense Removals,UKBA - UK Border Agency,CARLSON WAGONLIT TRAVEL,1883589,"212,989.13"
Home Office,UKBA - UK Border Agency,11/01/2011,Asylum Services.Public Expense Removals,UKBA - UK Border Agency,CARLSON WAGONLIT TRAVEL,1884355,"179,106.26"
Home Office,UKBA - UK Border Agency,21/01/2011,Asylum Services.Public Expense Removals,UKBA - UK Border Agency,CARLSON WAGONLIT TRAVEL,1893480,"153,781.60"
Home Office,UKBA - UK Border Agency,11/01/2011,Asylum Services.Public Expense Removals,UKBA - UK Border Agency,CARLSON WAGONLIT TRAVEL,1886622,"141,104.05"
Home Office,UKBA - UK Border Agency,21/01/2011,Asylum Services.Public Expense Removals,UKBA - UK Border Agency,CARLSON WAGONLIT TRAVEL,1888967,"129,725.53"
Home Office,UKBA - UK Border Agency,06/01/2011,Public Order.Voluntary Assisted Return,UKBA - UK Border Agency,CITIBANK INTERNATIONAL PLC,1884542,"125,000.00"
Home Office,UKBA - UK Border Agency,05/01/2011,Asylum Services.Public Expense Removals,UKBA - UK Border Agency,CARLSON WAGONLIT TRAVEL,1883587,"98,533.82"
Home Office,UKBA - UK Border Agency,27/01/2011,Asylum Services.Public Expense Removals,UKBA - UK Border Agency,CARLSON WAGONLIT TRAVEL,1898768,"84,037.13"
Home Office,UKBA - UK Border Agency,05/01/2011,Asylum Services.Public Expense Removals,UKBA - UK Border Agency,CARLSON WAGONLIT TRAVEL,1883592,"75,657.92"
Home Office,UKBA - UK Border Agency,27/01/2011,Asylum Services.Public Expense Removals,UKBA - UK Border Agency,CARLSON WAGONLIT TRAVEL,1898792,"75,657.92"
Home Office,UKBA - UK Border Agency,14/01/2011,Defense & Law Enforcement.Police Liaison Officers,UKBA - UK Border Agency,THE METROPOLITAN POLICE,1890469,"75,089.62"
Home Office,UKBA - UK Border Agency,11/01/2011,Asylum Services.Public Expense Removals,UKBA - UK Border Agency,CARLSON WAGONLIT TRAVEL,1884357,"65,120.30"
Home Office,UKBA - UK Border Agency,26/01/2011,Public Order.Jail or prison services,UKBA - UK Border Agency,POLICE SERVICE OF NTHN IRELAND,1898166,"64,486.20"
Home Office,UKBA - UK Border Agency,11/01/2011,Asylum Services.Public Expense Removals,UKBA - UK Border Agency,CARLSON WAGONLIT TRAVEL,1886626,"52,804.07"
Home Office,UKBA - UK Border Agency,11/01/2011,Public Order.Jail or prison services,UKBA - UK Border Agency,METROPOLITAN POLICE,1887108,"52,510.00"
Home Office,UKBA - UK Border Agency,11/01/2011,Asylum Services.Public Expense Removals,UKBA - UK Border Agency,CARLSON WAGONLIT TRAVEL,1886617,"48,419.93"
Home Office,UKBA - UK Border Agency,11/01/2011,Asylum Services.Public Expense Removals,UKBA - UK Border Agency,CARLSON WAGONLIT TRAVEL,1886625,"46,438.57"
Home Office,UKBA - UK Border Agency,11/01/2011,Asylum Services.Public Expense Removals,UKBA - UK Border Agency,CARLSON WAGONLIT TRAVEL,1886619,"37,666.15"
Home Office,UKBA - UK Border Agency,07/01/2011,Defense & Law Enforcement.Police Liaison Officers,UKBA - UK Border Agency,SOUTH YORKSHIRE POLICE,1881690,"35,864.85"
Home Office,UKBA - UK Border Agency,24/01/2011,IT & Telecommunications.IT & Telecommunications - PROG,UKBA - UK Border Agency,TREBLE 5 TREBLE 1 LTD,1874960,"35,250.00"
Home Office,UKBA - UK Border Agency,21/01/2011,Asylum Services.Public Expense Removals,UKBA - UK Border Agency,CARLSON WAGONLIT TRAVEL,1895006,"32,115.80"
Home Office,UKBA - UK Border Agency,21/01/2011,Defense & Law Enforcement.Police Liaison Officers,UKBA - UK Border Agency,WEST MIDLANDS POLICE,1894995,"31,366.99"
Home Office,UKBA - UK Border Agency,12/01/2011,Defense & Law Enforcement.Police Liaison Officers,UKBA - UK Border Agency,GREATER MANCHESTER POLICE,1888061,"30,690.42"
Home Office,UKBA - UK Border Agency,26/01/2011,Public Order.Jail or prison services,UKBA - UK Border Agency,POLICE SERVICE OF NTHN IRELAND,1898134,"29,329.27"
Home Office,UKBA - UK Border Agency,21/01/2011,Asylum Services.Public Expense Removals,UKBA - UK Border Agency,CARLSON WAGONLIT TRAVEL,1891470,"29,174.78"
Home Office,UKBA - UK Border Agency,26/01/2011,Defense & Law Enforcement.Police Liaison Officers,UKBA - UK Border Agency,SURREY POLICE AUTHORITY,1897976,"26,316.63"
Home Office,UKBA - UK Border Agency,31/01/2011,Defense & Law Enforcement.Police Liaison Officers,UKBA - UK Border Agency,SURREY POLICE AUTHORITY,1900906,"26,316.63"
Home Office,UKBA - UK Border Agency,12/01/2011,Defense & Law Enforcement.Police Liaison Officers,UKBA - UK Border Agency,STRATHCLYDE JOINT POLICE BOARD,1888161,"25,663.22"
Home Office,UKBA - UK Border Agency,04/01/2011,Professional & Admin Services.Visa Processing Services,UKBA - UK Border Agency,VF WORLDWIDE HOLDINGS LTD,1882545,"1,153,781.68"
Home Office,UKBA - UK Border Agency,31/01/2011,Storage & Mail Services.Messenger & Reception Services,UKBA - UK Border Agency,CSC COMPUTER SCIENCES CORPORATION,1892605,"601,340.85"
Home Office,UKBA - UK Border Agency,24/01/2011,Storage & Mail Services.Messenger & Reception Services,UKBA - UK Border Agency,NPIA (National Policing Improvement Agency),1860829,"360,725.00"
Home Office,UKBA - UK Border Agency,19/01/2011,Storage & Mail Services.Messenger & Reception Services,UKBA - UK Border Agency,NPIA (National Policing Improvement Agency),1881639,"354,850.00"
Home Office,UKBA - UK Border Agency,31/01/2011,"Science, Technical & Research.Testing",UKBA - UK Border Agency,ORCHID CELLMARK LTD,1901132,"54,957.69"
Home Office,UKBA - UK Border Agency,20/01/2011,Law Enforcement & safety Equip.Security & Control Equip- PROG,UKBA - UK Border Agency,HAMPSHIRE CONSTABULARY,1891817,"29,055.00"
Home Office,Home Office,19/01/2011,IT & Telecoms,PFD*,FUJITSU SERVICES LTD,1860779,"7,347,108.16"
Home Office,Home Office,26/01/2011,"IT & Telecoms, Hardware & Software",PFD*,HEWLETT PACKARD,1896996,"219,136.61"
Home Office,Home Office,19/01/2011,"IT & Telecoms, Hardware & Software",PFD*,HEWLETT PACKARD,1880491,"167,081.89"
Home Office,Home Office,25/01/2011,Travel & Food & Lodging.Travel facilitation,PFD*,CARLSON WAGONLIT TRAVEL,1897127,"121,754.08"
Home Office,Home Office,19/01/2011,Travel & Food & Lodging.Travel facilitation,PFD*,CARLSON WAGONLIT TRAVEL,1892739,"121,476.13"
Home Office,Home Office,26/01/2011,"Public Order, Security, Safety.Confinement Surveillance",PFD*,SERCO  LTD,1882546,"106,008.05"
Home Office,Home Office,07/01/2011,IT Expenses,PFD*,LOGICA CMG UK LTD,1862219,"93,177.50"
Home Office,Home Office,11/01/2011,Travel & Food & Lodging.Travel facilitation,PFD*,CARLSON WAGONLIT TRAVEL,1887032,"72,583.23"
Home Office,Home Office,11/01/2011,Fleet.Vehicles,PFD*,LEX AUTOLEASE LTD,1887774,"56,560.06"
Home Office,Home Office,11/01/2011,Fleet.Vehicles,PFD*,LEX AUTOLEASE LTD,1887776,"48,742.79"
Home Office,Home Office,11/01/2011,Fleet.Vehicles,PFD*,LEX AUTOLEASE LTD,1887770,"44,461.39"
Home Office,Home Office,24/01/2011,Professional & Admin Services.Personnel Recruit Serv - ADMN,PFD*,CAPITA RESOURCING LTD,1889995,"43,302.79"
Home Office,Home Office,10/01/2011,Conferences & Events,PFD*,NYS CORPORATE LTD,1885794,"33,046.20"
Home Office,Home Office,14/01/2011,Reprographics & Design,PFD*,ANNES GATE PROPERTY PLC,1889819,"25,480.31"
Home Office,UKBA - UK Border Agency,04/01/2011,Credit Memo,UKBA - UK Border Agency,RAYTHEON SYSTEMS LTD,1884166,"-224,429.58"
Home Office,UKBA - UK Border Agency,05/01/2011,Credit Memo,UKBA - UK Border Agency,CARLSON WAGONLIT TRAVEL,1886801,"-66,567.21"
Home Office,UKBA - UK Border Agency,11/01/2011,Credit Memo,UKBA - UK Border Agency,CARLSON WAGONLIT TRAVEL,1892986,"-70,796.16"
Home Office,UKBA - UK Border Agency,12/01/2011,Credit Memo,UKBA - UK Border Agency,FCO SERVICES,1903222,"-1,295,929.90"
Home Office,UKBA - UK Border Agency,18/01/2011,Credit Memo,UKBA - UK Border Agency,CARLSON WAGONLIT TRAVEL,1895811,"-83,837.06"
Home Office,UKBA - UK Border Agency,18/01/2011,Credit Memo,UKBA - UK Border Agency,RAYTHEON SYSTEMS LTD,1892726,"-333,018.46"
Home Office,UKBA - UK Border Agency,18/01/2011,Credit Memo,UKBA - UK Border Agency,RAYTHEON SYSTEMS LTD,1892732,"-281,551.97"
Home Office,UKBA - UK Border Agency,19/01/2011,Credit Memo,UKBA - UK Border Agency,CARLSON WAGONLIT TRAVEL,1898205,"-40,853.81"
Home Office,Home Office,01/01/2011,Credit Memo,PFD*,SAVVIS UK LTD,1895339,"-26,155.27"
Home Office,Home Office,06/01/2011,Credit Memo,PFD*,HEWLETT PACKARD,1890468,"-167,081.89"
Home Office,Home Office,13/01/2011,Credit Memo,PFD*,SERCO  LTD,1894056,"-124,071.12"
Home Office,Home Office,18/01/2011,Credit Memo,PFD*,HEWLETT PACKARD,1897050,"-219,136.61"
Home Office,Home Office,18/01/2011,Credit Memo,PFD*,HEWLETT PACKARD,1897224,"-156,564.05"
Home Office,Home Office,19/01/2011,Credit Memo,PFD*,SOUTH YORKSHIRE PROBATION TRUST,1897221,"-39,357.74"
Home Office,Home Office,26/01/2011,Credit Memo,PFD*,PINSENT MASONS,1900564,"-1,689,714.52"
Home Office,Home Office,26/01/2011,Credit Memo,PFD*,MINISTRY OF DEFENCE,1903106,"-47,527.67"
Home Office,Home Office,26/01/2011,Credit Memo,PFD*,CARLSON WAGONLIT TRAVEL,1903265,"-42,645.77"
Home Office,IPS - Identity & Passport Service,11/01/2011,Childcare,IPS - Identity & Passport Service,Accor Services Ltd,136681,"39,933.42"
Home Office,IPS - Identity & Passport Service,18/01/2011,Passport Stationery,IPS - Identity & Passport Service,ADARE LTD,136748,"92,074.43"
Home Office,IPS - Identity & Passport Service,21/01/2011,Other Government Departments,IPS - Identity & Passport Service,Benefits Agency,136769,"112,770.52"
Home Office,IPS - Identity & Passport Service,04/01/2011,Contracted Staff,IPS - Identity & Passport Service,Capita Resourcing Ltd,136644,"33,052.58"
Home Office,IPS - Identity & Passport Service,14/01/2011,Contracted Staff,IPS - Identity & Passport Service,Capita Resourcing Ltd,136719,"41,754.67"
Home Office,IPS - Identity & Passport Service,28/01/2011,IT Development,IPS - Identity & Passport Service,CSC COMPUTER SCIENCES LTD,136832,"147,156.58"
Home Office,IPS - Identity & Passport Service,11/01/2011,Facilities Management,IPS - Identity & Passport Service,Drivers Jonas,136692,"35,787.37"
Home Office,IPS - Identity & Passport Service,11/01/2011,Consultancy & Professional Ser,IPS - Identity & Passport Service,ERNST & YOUNG LLP,136693,"170,826.44"
Home Office,IPS - Identity & Passport Service,28/01/2011,Legal Fees,IPS - Identity & Passport Service,Field Fisher Waterhouse LLP,136838,"42,722.91"
Home Office,IPS - Identity & Passport Service,14/01/2011,Occupational Health Management,IPS - Identity & Passport Service,Health Management Ltd,136731,"35,680.47"
Home Office,IPS - Identity & Passport Service,04/01/2011,Passport Printing,IPS - Identity & Passport Service,Security Printing Systems Ltd,136647,"96,192.59"
Home Office,IPS - Identity & Passport Service,25/01/2011,Other Government Departments,IPS - Identity & Passport Service,Home Office,136809,"237,208.50"
Home Office,IPS - Identity & Passport Service,28/01/2011,Other Government Departments,IPS - Identity & Passport Service,Home Office,136841,"109,156.01"
Home Office,IPS - Identity & Passport Service,28/01/2011,Accommodation,IPS - Identity & Passport Service,McKibbin Property Consultants,136845,"60,000.00"
Home Office,IPS - Identity & Passport Service,11/01/2011,Contact Centre,IPS - Identity & Passport Service,MM TELEPERFORMANCE,136702,"375,242.01"
Home Office,IPS - Identity & Passport Service,07/01/2011,Consultancy & Professional Ser,IPS - Identity & Passport Service,PA Consulting Group,136670,"180,161.26"
Home Office,IPS - Identity & Passport Service,04/01/2011,Translation Services and Inter,IPS - Identity & Passport Service,PRESTIGE NETWORK LTD,136650,"25,604.38"
Home Office,IPS - Identity & Passport Service,11/01/2011,Passport Processing,IPS - Identity & Passport Service,Siemens Business Services Ltd,136710,"69,685.31"
Home Office,IPS - Identity & Passport Service,07/01/2011,Passports - Secure Mail,IPS - Identity & Passport Service,SECURE MAIL SERVICES LIMITED,136676,"521,342.39"
Home Office,IPS - Identity & Passport Service,21/01/2011,Passport Processing,IPS - Identity & Passport Service,Steria Limited,136788,"78,106.80"
Home Office,IPS - Identity & Passport Service,28/01/2011,Passport Processing,IPS - Identity & Passport Service,Steria Limited,136852,"974,808.34"
